Workbook

Sheet Cover
C2: EUROPEAN RAILWAY AGENCY
B6: ERTMS/ETCS
B7: Braking Curves simulation tool
B8: Version : | C8: 5.1
B9: Date : | C9: 15/10/2024
B11: Reference documents | C11: Title | D11: Last Issue
B12: SUBSET-026 | C12: ERTMS/ETCS System Requirements Specification | D12: 4.0.0

Sheet Train (main)
C2: Train type | P2: 0.6901818182 | AJ2: 0
C3: Brake position
C4: Traction model: T_traction_cut_off (seconds) | D4: 2
C5: Service brake interface ?
C6: Traction cut off interface ?
C7: Special/additional brake independent from wheel/track adhesion?
C8: Speed inaccuracy (%)
C9: Odometer inaccuracy (m + %)) | D9: 0
D10: 0
C11: Supervised Manoeuvre ?
C12: Safe consist length info available ?
C13: Engine orientation vs. train orientation
C14: Consist length in rear of the engine (inclusive) (m) | D14: 400
C15: min (m) nominal (m) max (m) | D15: 400 | E15: =D14 -> 400 | F15: 400
C16: Consist length in front of the engine (m) | D16: 0 | E16: 0 | F16: 0
C17: min (m) nom (m) max (m) | D17: 0 | E17: =D16 -> 0 | F17: 0
C18: Train length (m) | D18: 200
C19: Nominal rotating mass (%) | D19: 10
C20: Distance antenna - engine front (m) | D20: 12.5
C21: Engine length (m) | D21: 25
C22: Acceleration (m/s2) | D22: 0
C23: Current brake position: | D23: Freight in P
C24: Maximum overall train length | D24: 1500
C25: Safe consist length info available | D25: Yes
C26: Overall train length | D26: =IF(D25="No",D18,F15+F17) -> 400
D28: =IF(OR(D15>E15,F15<E15,D17>E17,F17<E17),"INVALID MIN/MAX CONSIST LENGTH","") -> 
D29: =IF(D26>D24,"TOO LONG OVERALL TRAIN LENGTH","") -> 
Z1602: 400 | AQ1602: 0.3135 | AR1602: 0.3135 | AS1602: 0.45 | AT1602: 0.45 | AU1602: 0.6624293478 | AV1602: 0.6624293478 | AW1602: 0.8953043478 | AX1602: 0.8953043478 | AY1602: 1

Sheet Track
A1: Target type | D1: Distance EOA/SvL | E1: 0 | F1: Relocation balises Distance from origin (m) | G1: Location accuracy (m) | H1: Relocation balises Distance from target (m) | I1: Gradient profile
A2: Target speed (km/h) | B2: 40 | D2: Release speed (km/h) | E2: 0 | F2: 0 | G2: 0 | H2: =IF($F2="","",$B$3-$F2) -> 6000 | I2: d (m) | J2: Gradient G (‰) | O2: =$H2 -> 6000 | P2: 0
A3: Dist. origin/target (m) | B3: 6000 | F3: 2000 | G3: 0 | H3: 4000 | I3: 0 | J3: 0 | O3: =IF($F3="",$O2,$H3) -> 4000 | P3: 0
A4: Initial speed (km/h) | B4: 160 | F4: 3000 | G4: 0 | H4: 3000 | I4: 2000 | J4: =IF(J3="","",J3) -> 0 | O4: 3000 | P4: 0
A5: Track condition brake inhibition profile | F5: 4000 | G5: 0 | H5: 2000 | I5: =IF(J5="","",I4) -> 2000 | J5: -5 | O5: 2000 | P5: 0
A6: Start of brake inhibition (m) | B6: 2000 | I6: 4000 | J6: =IF(J5="","",J5) -> -5 | O6: 2000 | P6: 0
A7: End of brake inhibition (m) | I7: =IF(J7="","",I6) -> 4000 | J7: 10 | O7: 2000 | P7: 0
A8: Reduced adhesion profile | I8: 6055 | J8: =IF(J7="","",J7) -> 10 | O8: 2000 | P8: 0
A9: Start of reduced adhesion (m) | B9: 4500 | I9: =IF(J9="","",I8) ->  | O9: 2000 | P9: 0
A10: End of reduced adhesion (m) | B10: 6500 | J10: =IF(J9="","",J9) ->  | O10: 2000 | P10: 0
I11: =IF(J11="","",I10) ->  | O11: 2000 | P11: 0
J12: =IF(J11="","",J11) ->  | O12: 2000 | P12: 0
I13: =IF(J13="","",I12) ->  | O13: 2000 | P13: 0
J14: =IF(J13="","",J13) ->  | O14: 2000 | P14: 0
O15: 2000 | P15: 0
J16: =IF(J15="","",J15) ->  | O16: 2000 | P16: 0
O17: 2000 | P17: 0
J18: =IF(J17="","",J17) ->  | O18: 2000 | P18: 0
O19: 2000 | P19: 0
J20: =IF(J19="","",J19) ->  | O20: 2000 | P20: 0
O21: 2000 | P21: 0
J22: =IF(J21="","",J21) ->  | O22: 2000 | P22: 0
O23: 2000 | P23: 0
J24: =IF(J23="","",J23) ->  | O24: 2000 | P24: 0
O25: 2000 | P25: 0
J26: =IF(J25="","",J25) ->  | O26: 2000 | P26: 0
O27: 2000 | P27: 0
J28: =IF(J27="","",J27) ->  | O28: 2000 | P28: 0
O29: 2000 | P29: 0
J30: =IF(J29="","",J29) ->  | O30: 2000 | P30: 0
O31: 2000 | P31: 0
J32: =IF(J31="","",J31) -> 
J34: =IF(J33="","",J33) -> 
A35: d (m) | B35: G(‰) | C35: G(‰) train length compensated | D35: Acceleration/deceleration due to gradient A_gradient (m/s2) | E35: Max. Acceleration under reduced adhesion conditions (m/s2) | F35: Brake inhib
A36: 0 | B36: 0 | C36: 0 | D36: 0 | J36: =IF(J35="","",J35) -> 
A37: 1 | B37: 0 | C37: 0 | D37: 0
A38: 2 | B38: 0 | C38: 0 | D38: 0 | J38: =IF(J37="","",J37) -> 
A39: 3 | B39: 0 | C39: 0 | D39: 0
A40: 4 | B40: 0 | C40: 0 | D40: 0 | J40: =IF(J39="","",J39) -> 
A41: 5 | B41: 0 | C41: 0 | D41: 0
A42: 6 | B42: 0 | C42: 0 | D42: 0 | J42: =IF(J41="","",J41) -> 
A43: 7 | B43: 0 | C43: 0 | D43: 0
A44: 8 | B44: 0 | C44: 0 | D44: 0 | J44: =IF(J43="","",J43) -> 
A45: 9 | B45: 0 | C45: 0 | D45: 0
A46: 10 | B46: 0 | C46: 0 | D46: 0 | J46: =IF(J45="","",J45) -> 
A47: 11 | B47: 0 | C47: 0 | D47: 0
A48: 12 | B48: 0 | C48: 0 | D48: 0 | J48: =IF(J47="","",J47) -> 
A49: 13 | B49: 0 | C49: 0 | D49: 0
A50: 14 | B50: 0 | C50: 0 | D50: 0 | J50: =IF(J49="","",J49) -> 
A51: 15 | B51: 0 | C51: 0 | D51: 0
A52: 16 | B52: 0 | C52: 0 | D52: 0 | J52: =IF(J51="","",J51) -> 
A53: 17 | B53: 0 | C53: 0 | D53: 0
A54: 18 | B54: 0 | C54: 0 | D54: 0 | J54: =IF(J53="","",J53) -> 
A55: 19 | B55: 0 | C55: 0 | D55: 0
A56: 20 | B56: 0 | C56: 0 | D56: 0 | J56: =IF(J55="","",J55) -> 
A57: 21 | B57: 0 | C57: 0 | D57: 0
A58: 22 | B58: 0 | C58: 0 | D58: 0 | J58: =IF(J57="","",J57) -> 
A59: 23 | B59: 0 | C59: 0 | D59: 0
A60: 24 | B60: 0 | C60: 0 | D60: 0 | J60: =IF(J59="","",J59) -> 
A61: 25 | B61: 0 | C61: 0 | D61: 0
A62: 26 | B62: 0 | C62: 0 | D62: 0 | J62: =IF(J61="","",J61) -> 
A63: 27 | B63: 0 | C63: 0 | D63: 0
A64: 28 | B64: 0 | C64: 0 | D64: 0 | J64: =IF(J63="","",J63) -> 
A65: 29 | B65: 0 | C65: 0 | D65: 0
A66: 30 | B66: 0 | C66: 0 | D66: 0 | J66: =IF(J65="","",J65) -> 
A67: 31 | B67: 0 | C67: 0 | D67: 0
A68: 32 | B68: 0 | C68: 0 | D68: 0 | J68: =IF(J67="","",J67) -> 
A69: 33 | B69: 0 | C69: 0 | D69: 0
A70: 34 | B70: 0 | C70: 0 | D70: 0 | J70: =IF(J69="","",J69) -> 
A71: 35 | B71: 0 | C71: 0 | D71: 0
A72: 36 | B72: 0 | C72: 0 | D72: 0 | J72: =IF(J71="","",J71) -> 
A73: 37 | B73: 0 | C73: 0 | D73: 0
A74: 38 | B74: 0 | C74: 0 | D74: 0 | J74: =IF(J73="","",J73) -> 
A75: 39 | B75: 0 | C75: 0 | D75: 0 | I75: =IF(J75="","",I74) -> 
A76: 40 | B76: 0 | C76: 0 | D76: 0 | J76: =IF(J75="","",J75) -> 
A77: 41 | B77: 0 | C77: 0 | D77: 0
A78: 42 | B78: 0 | C78: 0 | D78: 0 | J78: =IF(J77="","",J77) -> 
A79: 43 | B79: 0 | C79: 0 | D79: 0
A80: 44 | B80: 0 | C80: 0 | D80: 0 | J80: =IF(J79="","",J79) -> 
A81: 45 | B81: 0 | C81: 0 | D81: 0
A82: 46 | B82: 0 | C82: 0 | D82: 0 | J82: =IF(J81="","",J81) -> 
A83: 47 | B83: 0 | C83: 0 | D83: 0
A84: 48 | B84: 0 | C84: 0 | D84: 0 | J84: =IF(J83="","",J83) -> 
A85: 49 | B85: 0 | C85: 0 | D85: 0
A86: 50 | B86: 0 | C86: 0 | D86: 0 | J86: =IF(J85="","",J85) -> 
A87: 51 | B87: 0 | C87: 0 | D87: 0
A88: 52 | B88: 0 | C88: 0 | D88: 0 | J88: =IF(J87="","",J87) -> 
A89: 53 | B89: 0 | C89: 0 | D89: 0
A90: 54 | B90: 0 | C90: 0 | D90: 0 | J90: =IF(J89="","",J89) -> 
A91: 55 | B91: 0 | C91: 0 | D91: 0
A92: 56 | B92: 0 | C92: 0 | D92: 0 | J92: =IF(J91="","",J91) -> 
A93: 57 | B93: 0 | C93: 0 | D93: 0
A94: 58 | B94: 0 | C94: 0 | D94: 0 | J94: =IF(J93="","",J93) -> 
A95: 59 | B95: 0 | C95: 0 | D95: 0
A96: 60 | B96: 0 | C96: 0 | D96: 0 | J96: =IF(J95="","",J95) -> 
A97: 61 | B97: 0 | C97: 0 | D97: 0
A98: 62 | B98: 0 | C98: 0 | D98: 0 | J98: =IF(J97="","",J97) -> 
A99: 63 | B99: 0 | C99: 0 | D99: 0
A100: 64 | B100: 0 | C100: 0 | D100: 0 | J100: =IF(J99="","",J99) -> 
A101: 65 | B101: 0 | C101: 0 | D101: 0
A102: 66 | B102: 0 | C102: 0 | D102: 0 | J102: =IF(J101="","",J101) -> 
A103: 67 | B103: 0 | C103: 0 | D103: 0
A104: 68 | B104: 0 | C104: 0 | D104: 0
A105: 69 | B105: 0 | C105: 0 | D105: 0
A106: 70 | B106: 0 | C106: 0 | D106: 0
A107: 71 | B107: 0 | C107: 0 | D107: 0
A108: 72 | B108: 0 | C108: 0 | D108: 0
A109: 73 | B109: 0 | C109: 0 | D109: 0
A110: 74 | B110: 0 | C110: 0 | D110: 0
A111: 75 | B111: 0 | C111: 0 | D111: 0
A112: 76 | B112: 0 | C112: 0 | D112: 0
A113: 77 | B113: 0 | C113: 0 | D113: 0
A114: 78 | B114: 0 | C114: 0 | D114: 0
A115: 79 | B115: 0 | C115: 0 | D115: 0
A116: 80 | B116: 0 | C116: 0 | D116: 0
A117: 81 | B117: 0 | C117: 0 | D117: 0
A118: 82 | B118: 0 | C118: 0 | D118: 0
A119: 83 | B119: 0 | C119: 0 | D119: 0
A120: 84 | B120: 0 | C120: 0 | D120: 0
A121: 85 | B121: 0 | C121: 0 | D121: 0
A122: 86 | B122: 0 | C122: 0 | D122: 0
A123: 87 | B123: 0 | C123: 0 | D123: 0
A124: 88 | B124: 0 | C124: 0 | D124: 0
A125: 89 | B125: 0 | C125: 0 | D125: 0
A126: 90 | B126: 0 | C126: 0 | D126: 0
A127: 91 | B127: 0 | C127: 0 | D127: 0
A128: 92 | B128: 0 | C128: 0 | D128: 0
A129: 93 | B129: 0 | C129: 0 | D129: 0
A130: 94 | B130: 0 | C130: 0 | D130: 0
A131: 95 | B131: 0 | C131: 0 | D131: 0
A132: 96 | B132: 0 | C132: 0 | D132: 0
A133: 97 | B133: 0 | C133: 0 | D133: 0
A134: 98 | B134: 0 | C134: 0 | D134: 0
A135: 99 | B135: 0 | C135: 0 | D135: 0
A136: 100 | B136: 0 | C136: 0 | D136: 0
A137: 101 | B137: 0 | C137: 0 | D137: 0
A138: 102 | B138: 0 | C138: 0 | D138: 0
A139: 103 | B139: 0 | C139: 0 | D139: 0
A140: 104 | B140: 0 | C140: 0 | D140: 0
A141: 105 | B141: 0 | C141: 0 | D141: 0
A142: 106 | B142: 0 | C142: 0 | D142: 0
A143: 107 | B143: 0 | C143: 0 | D143: 0
A144: 108 | B144: 0 | C144: 0 | D144: 0
A145: 109 | B145: 0 | C145: 0 | D145: 0
A146: 110 | B146: 0 | C146: 0 | D146: 0
A147: 111 | B147: 0 | C147: 0 | D147: 0
A148: 112 | B148: 0 | C148: 0 | D148: 0
A149: 113 | B149: 0 | C149: 0 | D149: 0
A150: 114 | B150: 0 | C150: 0 | D150: 0
A151: 115 | B151: 0 | C151: 0 | D151: 0
A152: 116 | B152: 0 | C152: 0 | D152: 0
A153: 117 | B153: 0 | C153: 0 | D153: 0
A154: 118 | B154: 0 | C154: 0 | D154: 0
A155: 119 | B155: 0 | C155: 0 | D155: 0
A156: 120 | B156: 0 | C156: 0 | D156: 0
A157: 121 | B157: 0 | C157: 0 | D157: 0
A158: 122 | B158: 0 | C158: 0 | D158: 0
A159: 123 | B159: 0 | C159: 0 | D159: 0
A160: 124 | B160: 0 | C160: 0 | D160: 0
A161: 125 | B161: 0 | C161: 0 | D161: 0
A162: 126 | B162: 0 | C162: 0 | D162: 0
A163: 127 | B163: 0 | C163: 0 | D163: 0
A164: 128 | B164: 0 | C164: 0 | D164: 0
A165: 129 | B165: 0 | C165: 0 | D165: 0
A166: 130 | B166: 0 | C166: 0 | D166: 0
A167: 131 | B167: 0 | C167: 0 | D167: 0
A168: 132 | B168: 0 | C168: 0 | D168: 0
A169: 133 | B169: 0 | C169: 0 | D169: 0
A170: 134 | B170: 0 | C170: 0 | D170: 0
A171: 135 | B171: 0 | C171: 0 | D171: 0
A172: 136 | B172: 0 | C172: 0 | D172: 0
A173: 137 | B173: 0 | C173: 0 | D173: 0
A174: 138 | B174: 0 | C174: 0 | D174: 0
A175: 139 | B175: 0 | C175: 0 | D175: 0
A176: 140 | B176: 0 | C176: 0 | D176: 0
A177: 141 | B177: 0 | C177: 0 | D177: 0
A178: 142 | B178: 0 | C178: 0 | D178: 0
A179: 143 | B179: 0 | C179: 0 | D179: 0
A180: 144 | B180: 0 | C180: 0 | D180: 0
A181: 145 | B181: 0 | C181: 0 | D181: 0
A182: 146 | B182: 0 | C182: 0 | D182: 0
A183: 147 | B183: 0 | C183: 0 | D183: 0
A184: 148 | B184: 0 | C184: 0 | D184: 0
A185: 149 | B185: 0 | C185: 0 | D185: 0
A186: 150 | B186: 0 | C186: 0 | D186: 0
A187: 151 | B187: 0 | C187: 0 | D187: 0
A188: 152 | B188: 0 | C188: 0 | D188: 0
A189: 153 | B189: 0 | C189: 0 | D189: 0
A190: 154 | B190: 0 | C190: 0 | D190: 0
A191: 155 | B191: 0 | C191: 0 | D191: 0
A192: 156 | B192: 0 | C192: 0 | D192: 0
A193: 157 | B193: 0 | C193: 0 | D193: 0
A194: 158 | B194: 0 | C194: 0 | D194: 0
A195: 159 | B195: 0 | C195: 0 | D195: 0
A196: 160 | B196: 0 | C196: 0 | D196: 0
A197: 161 | B197: 0 | C197: 0 | D197: 0
A198: 162 | B198: 0 | C198: 0 | D198: 0
A199: 163 | B199: 0 | C199: 0 | D199: 0
A200: 164 | B200: 0 | C200: 0 | D200: 0
A201: 165 | B201: 0 | C201: 0 | D201: 0
... 5890 more rows

Sheet National values
A1: Permission to use service brake in target speed monitoring | D1: Q_NVSBTSMPERM | G1: Yes | H1: m | I1: D_NVROLL
A2: Permission to use the guidance curve | D2: Q_NVGUIPERM | G2: No
A3: Permission to inhibit the compensation of the speed measurement inaccuracy | D3: Q_NVINHSMICPERM | G3: No | H3: m | I3: D_NVOVTRP
A4: Maximum deceleration value under reduced adhesion conditions(1) | B4: 0.2 | C4: m/s2 | D4: A_NVMAXREDADH1 | F4: Maximum deceleration value under reduced adhesion conditions(1) | G4: 1 | H4: m/s2 | I4: A_NVMAXREDADH1
A5: Maximum deceleration value under reduced adhesion conditions(2) | B5: 0.2 | C5: m/s2 | D5: A_NVMAXREDADH2 | F5: Maximum deceleration value under reduced adhesion conditions(2) | G5: 0.7 | H5: m/s2 | I5: A_NVMAXREDADH2
A6: Maximum deceleration value under reduced adhesion conditions(3) | B6: 0.2 | C6: m/s2 | D6: A_NVMAXREDADH3 | F6: Maximum deceleration value under reduced adhesion conditions(3) | G6: 0.7 | H6: m/s2 | I6: A_NVMAXREDADH3
A7: Weighting factor for available wheel/rail adhesion | B7: 0 | D7: M_NVAVADH | F7: Weighting factor for available wheel/rail adhesion | G7: 0 | I7: M_NVAVADH
A8: Confidence level for emergency brake safe deceleration on dry rails | B8: 99.99 | C8: % | D8: M_NVEBCL | F8: Confidence level for emergency brake safe deceleration on dry rails | G8: 99.9999999 | H8: % | I8: M_NVEBCL
A9: Train length step used for the correction factor Kr_int | B9: See sheet "Integrated correction factors" | D9: L_NVKRINT | F9: Train length step used for the correction factor Kr_int | G9: N/A | I9: L_NVKRINT
A10: Train length dependent correction factor Kr_int | B10: See sheet "Integrated correction factors" | D10: M_NVKRINT | F10: Train length dependent correction factor Kr_int | G10: 0.9 | I10: M_NVKRINT
A11: Speed step used for the correction factor Kv_int | B11: See sheet "Integrated correction factors" | D11: V_NVKVINT | F11: Speed step used for the correction factor Kv_int | G11: N/A | I11: V_NVKVINT
A12: Speed dependent correction factor Kv_int | B12: See sheet "Integrated correction factors" | D12: M_NVKVINT | F12: Speed dependent correction factor Kv_int | G12: 0.7 | I12: M_NVKVINT
A13: Correction factor to brake build up time | B13: See sheet "Integrated correction factors" | D13: M_NVKTINT | F13: Correction factor to brake build up time | G13: 1.1 | I13: M_NVKTINT
A14: Lower deceleration limit to determine the set of Kv to be used | B14: See sheet "Integrated correction factors" | D14: A_NVP12 | F14: Lower deceleration limit to determine the set of Kv to be used | G14: N/A | I14: A_NVP12
A15: Upper deceleration limit to determine the set of Kv to be used | B15: See sheet "Integrated correction factors" | D15: A_NVP23 | F15: Upper deceleration limit to determine the set of Kv to be used | G15: N/A | I15: A_NVP23

Sheet Fixed values
B2: dV_ebi_min | C2: 7.5 | D2: km/h
B3: dV_ebi_max | C3: 15 | D3: km/h
B4: V_ebi_min | C4: 110 | D4: km/h
B5: V_ebi_max | C5: 210 | D5: km/h
B6: dV_sbi_min | C6: 5.5 | D6: km/h
B7: dV_sbi_max | C7: 10 | D7: km/h
B8: V_sbi_min | C8: 110 | D8: km/h
B9: V_sbi_max | C9: 210 | D9: km/h
B10: dV_warning_min | C10: 4 | D10: km/h
B11: dV_warning_max | C11: 5 | D11: km/h
B12: V_warning_min | C12: 110 | D12: km/h
B13: V_warning_max | C13: 140 | D13: km/h
B14: T_warning | C14: 2 | D14: s
B15: T_driver | C15: 4 | D15: s
B16: T_41 | C16: 1 | D16: s
B17: M_rotating_max | C17: 15 | D17: %
B18: M_rotating_min | C18: 2 | D18: %
B19: g | C19: 9.81 | D19: m/s2

Sheet Brake parameters (lambda)
F1: Brake percentage l (%) | Y1: Normal service brake deceleration (A_brake_normal_service_0) - Passenger/freight P | AK1: Normal service brake deceleration (A_brake_normal_service_0) - Freight G
F2: 109 | T2: A_SB01 (m/s2) | U2: 1.2 | Y2: V0 | Z2: 0 | AA2: AD0 | AB2: 0.4 | AK2: V0 | AL2: 0 | AM2: AD0 | AN2: 1
E3: Brake percentage for emergency brake lo (%) | F3: 90 | T3: A_SB12 (m/s2) | U3: 1.3 | Y3: V1 | Z3: 40 | AA3: AD0 | AB3: =AB2 -> 0.4 | AK3: V1 | AL3: 50 | AM3: AD0 | AN3: =AN2 -> 1
E4: Brake percentage for service brake lo (%) | F4: =IF(lambda1>135,135,lambda1) -> 90 | Z4: =Z3+0.001 -> 40.001 | AA4: AD1 | AB4: 0.3 | AL4: =AL3+0.001 -> 50.001 | AM4: AD1 | AN4: 0.7
E5: V_lim for emergency brake (km/h) | F5: =V_lim(lambda1) -> 115.6154035 | Y5: V2 | Z5: 160 | AA5: AD1 | AB5: =AB4 -> 0.3 | AK5: V2 | AL5: 160 | AM5: AD1 | AN5: =AN4 -> 0.7
E6: V_lim for service brake (km/h) | F6: =V_lim(lambda2) -> 115.6154035 | Z6: =Z5+0.001 -> 160.001 | AA6: AD2 | AB6: 0.3 | AL6: =AL5+0.001 -> 160.001 | AM6: AD2 | AN6: 0.2
E7: kto | F7: =IF('Train (main)'!D23 = "Freight in P", 1+0.2,IF('Train (main)'!D23 = "Passenger in P", 1+0.2,1+0.16)) -> 1.2 | Y7: V3 | Z7: 160 | AA7: AD2 | AB7: =AB6 -> 0.3 | AK7: V3 | AL7: 180 | AM7: AD2 | AN7: =AN6 -> 0.2
E8: T_brake_emergency_cm0 (seconds) | F8: =t_bbu([0]!overall_train_length,'Train (main)'!D23) -> 5.02 | Z8: =Z7+0.001 -> 160.001 | AA8: AD3 | AB8: 0.35 | AL8: =AL7+0.001 -> 180.001 | AM8: AD3 | AN8: 1
E9: T_brake_emergency_cmt (seconds) | F9: =F7*t_bbu([0]!overall_train_length,'Train (main)'!D23) -> 6.024 | Y9: V4 | Z9: 160 | AA9: AD3 | AB9: =AB8 -> 0.35 | AK9: V4 | AL9: 180 | AM9: AD3 | AN9: =AN8 -> 1
E10: T_brake_service_cm0 (seconds) | F10: =t_bbuSB([0]!overall_train_length,'Train (main)'!D23) -> 14.08 | Z10: =Z9+0.001 -> 160.001 | AA10: AD4 | AB10: 0.35 | AL10: =AL9+0.001 -> 180.001 | AM10: AD4 | AN10: 0.5
E11: T_brake_service_cmt (seconds) | F11: =F7*t_bbuSB([0]!overall_train_length,'Train (main)'!D23) -> 16.896 | Y11: V5 | Z11: 160 | AA11: AD4 | AB11: =AB10 -> 0.35 | AK11: V5 | AL11: 180 | AM11: AD4 | AN11: =AN10 -> 0.5
E12: T_brake_emergency (seconds) | F12: =IF(Track!B2=0,F8,F9) -> 6.024 | Z12: =Z11+0.001 -> 160.001 | AA12: AD5 | AB12: 0.35 | AL12: =AL11+0.001 -> 180.001 | AM12: AD5 | AN12: 1
D13: 1 | E13: T_brake_service (seconds) | F13: =IF(D13=1,IF(Track!B2=0,F10,F11),F14) -> 16.896 | Q13: Speed V (km/h) | R13: A_brake_normal_service(V) (m/s2) | Y13: V6 | Z13: 180 | AA13: AD5 | AB13: =AB12 -> 0.35 | AK13: V6 | AL13: 180 | AM13: AD5 | AN13: =AN12 -> 1
D14: =IF(Track!B2=0,F10,F11) -> 16.896 | Q14: 0 | R14: =IF($N$16<=$U$2,IF('Train (main)'!$D$23="Freight in G",$AN2,$AB2),IF($N$16<=$U$3,IF('Train (main)'!$D$23="Freight in G",$AN17,$AB17),IF('Train (main)'!$D$23="Freight in G",$AN32,$AB32))) -> 0.4 | Z14: =Z13+0.001 -> 180.001 | AA14: AD6 | AB14: 0.35 | AL14: =AL13+0.001 -> 180.001 | AM14: AD6 | AN14: 1
E15: T_brake_emergency_react (seconds) | F15: =t_bbuEB_react('Train (main)'!D23) -> 2.99 | I15: Speed V (km/h) | J15: A_brake_emergency(V) (m/s2) | M15: Speed V (km/h) | N15: A_brake_service(V) (m/s2) | Q15: =IF($N$16<=$U$2,IF('Train (main)'!$D$23="Freight in G",$AL3,$Z3),IF($N$16<=$U$3,IF('Train (main)'!$D$23="Freight in G",$AL18,$Z18),IF('Train (main)'!$D$23="Freight in G",$AL33,$Z33))) -> 40 | R15: =IF($N$16<=$U$2,IF('Train (main)'!$D$23="Freight in G",$AN3,$AB3),IF($N$16<=$U$3,IF('Train (main)'!$D$23="Freight in G",$AN18,$AB18),IF('Train (main)'!$D$23="Freight in G",$AN33,$AB33))) -> 0.4 | Y15: v7 | Z15: 200 | AA15: AD6 | AB15: =AB14 -> 0.35 | AK15: v7 | AL15: 200 | AM15: AD6 | AN15: =AN14 -> 1
E16: T_brake_service_react | F16: =IF(D13=1,t_bbuSB_react('Train (main)'!D23),F17) -> 2.07 | I16: 0 | J16: =J17 -> 0.751 | M16: 0 | N16: =N17 -> 0.751 | Q16: =IF($N$16<=$U$2,IF('Train (main)'!$D$23="Freight in G",$AL4,$Z4),IF($N$16<=$U$3,IF('Train (main)'!$D$23="Freight in G",$AL19,$Z19),IF('Train (main)'!$D$23="Freight in G",$AL34,$Z34))) -> 40.001 | R16: =IF($N$16<=$U$2,IF('Train (main)'!$D$23="Freight in G",$AN4,$AB4),IF($N$16<=$U$3,IF('Train (main)'!$D$23="Freight in G",$AN19,$AB19),IF('Train (main)'!$D$23="Freight in G",$AN34,$AB34))) -> 0.3 | Y16: Normal service brake deceleration (A_brake_normal_service_1) - Passenger/freight P | AK16: Normal service brake deceleration (A_brake_normal_service_1) - Freight G
E17: (seconds) | H17: V_lim EB | I17: =F5 -> 115.6154035 | J17: =AD_UIC(lambda1,I17) -> 0.751 | L17: V_lim BS | M17: =F6 -> 115.6154035 | N17: =AD_UIC(lambda2,M17) -> 0.751 | Q17: =IF($N$16<=$U$2,IF('Train (main)'!$D$23="Freight in G",$AL5,$Z5),IF($N$16<=$U$3,IF('Train (main)'!$D$23="Freight in G",$AL20,$Z20),IF('Train (main)'!$D$23="Freight in G",$AL35,$Z35))) -> 160 | R17: =IF($N$16<=$U$2,IF('Train (main)'!$D$23="Freight in G",$AN5,$AB5),IF($N$16<=$U$3,IF('Train (main)'!$D$23="Freight in G",$AN20,$AB20),IF('Train (main)'!$D$23="Freight in G",$AN35,$AB35))) -> 0.3 | Y17: V0 | Z17: 0 | AA17: AD0 | AB17: 1 | AK17: V0 | AL17: 0 | AM17: AD0 | AN17: 1
I18: =I17+0.001 -> 115.6164035 | J18: =J19 -> 0.754843 | M18: =M17+0.001 -> 115.6164035 | N18: =N19 -> 0.754843 | Q18: =IF($N$16<=$U$2,IF('Train (main)'!$D$23="Freight in G",$AL6,$Z6),IF($N$16<=$U$3,IF('Train (main)'!$D$23="Freight in G",$AL21,$Z21),IF('Train (main)'!$D$23="Freight in G",$AL36,$Z36))) -> 160.001 | R18: =IF($N$16<=$U$2,IF('Train (main)'!$D$23="Freight in G",$AN6,$AB6),IF($N$16<=$U$3,IF('Train (main)'!$D$23="Freight in G",$AN21,$AB21),IF('Train (main)'!$D$23="Freight in G",$AN36,$AB36))) -> 0.3 | Y18: V1 | Z18: 60 | AA18: AD0 | AB18: =AB17 -> 1 | AK18: V1 | AL18: 70 | AM18: AD0 | AN18: =AN17 -> 1
I19: =IF(I17<100,100,IF(I17<120,120,IF(I17<150,150,IF(I17<180,180,I17)))) -> 120 | J19: =AD_UIC(lambda1,I19) -> 0.754843 | M19: =IF(M17<100,100,IF(M17<120,120,IF(M17<150,150,IF(M17<180,180,M17)))) -> 120 | N19: =AD_UIC(lambda2,M19) -> 0.754843 | Q19: =IF($N$16<=$U$2,IF('Train (main)'!$D$23="Freight in G",$AL7,$Z7),IF($N$16<=$U$3,IF('Train (main)'!$D$23="Freight in G",$AL22,$Z22),IF('Train (main)'!$D$23="Freight in G",$AL37,$Z37))) -> 160 | R19: =IF($N$16<=$U$2,IF('Train (main)'!$D$23="Freight in G",$AN7,$AB7),IF($N$16<=$U$3,IF('Train (main)'!$D$23="Freight in G",$AN22,$AB22),IF('Train (main)'!$D$23="Freight in G",$AN37,$AB37))) -> 0.3 | Z19: =Z18+0.001 -> 60.001 | AA19: AD1 | AB19: 0.6 | AL19: =AL18+0.001 -> 70.001 | AM19: AD1 | AN19: 0.5
I20: =I19+0.001 -> 120.001 | J20: =J21 -> 0.5567222 | M20: =M19+0.001 -> 120.001 | N20: =N21 -> 0.5567222 | Q20: =IF($N$16<=$U$2,IF('Train (main)'!$D$23="Freight in G",$AL8,$Z8),IF($N$16<=$U$3,IF('Train (main)'!$D$23="Freight in G",$AL23,$Z23),IF('Train (main)'!$D$23="Freight in G",$AL38,$Z38))) -> 160.001 | R20: =IF($N$16<=$U$2,IF('Train (main)'!$D$23="Freight in G",$AN8,$AB8),IF($N$16<=$U$3,IF('Train (main)'!$D$23="Freight in G",$AN23,$AB23),IF('Train (main)'!$D$23="Freight in G",$AN38,$AB38))) -> 0.35 | Y20: V2 | Z20: 160 | AA20: AD1 | AB20: =AB19 -> 0.6 | AK20: V2 | AL20: 160 | AM20: AD1 | AN20: =AN19 -> 0.5
I21: =IF(I19<100,100,IF(I19<120,120,IF(I19<150,150,IF(I19<180,180,I19)))) -> 150 | J21: =AD_UIC(lambda1,I21) -> 0.5567222 | M21: =IF(M19<100,100,IF(M19<120,120,IF(M19<150,150,IF(M19<180,180,M19)))) -> 150 | N21: =AD_UIC(lambda2,M21) -> 0.5567222 | Q21: =IF($N$16<=$U$2,IF('Train (main)'!$D$23="Freight in G",$AL9,$Z9),IF($N$16<=$U$3,IF('Train (main)'!$D$23="Freight in G",$AL24,$Z24),IF('Train (main)'!$D$23="Freight in G",$AL39,$Z39))) -> 160 | R21: =IF($N$16<=$U$2,IF('Train (main)'!$D$23="Freight in G",$AN9,$AB9),IF($N$16<=$U$3,IF('Train (main)'!$D$23="Freight in G",$AN24,$AB24),IF('Train (main)'!$D$23="Freight in G",$AN39,$AB39))) -> 0.35 | Z21: =Z20+0.001 -> 160.001 | AA21: AD2 | AB21: 1 | AL21: =AL20+0.001 -> 160.001 | AM21: AD2 | AN21: 1
I22: =I21+0.001 -> 150.001 | J22: =J23 -> 0.535485 | M22: =M21+0.001 -> 150.001 | N22: =N23 -> 0.535485 | Q22: =IF($N$16<=$U$2,IF('Train (main)'!$D$23="Freight in G",$AL10,$Z10),IF($N$16<=$U$3,IF('Train (main)'!$D$23="Freight in G",$AL25,$Z25),IF('Train (main)'!$D$23="Freight in G",$AL40,$Z40))) -> 160.001 | R22: =IF($N$16<=$U$2,IF('Train (main)'!$D$23="Freight in G",$AN10,$AB10),IF($N$16<=$U$3,IF('Train (main)'!$D$23="Freight in G",$AN25,$AB25),IF('Train (main)'!$D$23="Freight in G",$AN40,$AB40))) -> 0.35 | Y22: V3 | Z22: 160 | AA22: AD2 | AB22: =AB21 -> 1 | AK22: V3 | AL22: 160 | AM22: AD2 | AN22: =AN21 -> 1
I23: =IF(I21<100,100,IF(I21<120,120,IF(I21<150,150,IF(I21<180,180,I21)))) -> 180 | J23: =AD_UIC(lambda1,I23) -> 0.535485 | M23: =IF(M21<100,100,IF(M21<120,120,IF(M21<150,150,IF(M21<180,180,M21)))) -> 180 | N23: =AD_UIC(lambda2,M23) -> 0.535485 | Q23: =IF($N$16<=$U$2,IF('Train (main)'!$D$23="Freight in G",$AL11,$Z11),IF($N$16<=$U$3,IF('Train (main)'!$D$23="Freight in G",$AL26,$Z26),IF('Train (main)'!$D$23="Freight in G",$AL41,$Z41))) -> 160 | R23: =IF($N$16<=$U$2,IF('Train (main)'!$D$23="Freight in G",$AN11,$AB11),IF($N$16<=$U$3,IF('Train (main)'!$D$23="Freight in G",$AN26,$AB26),IF('Train (main)'!$D$23="Freight in G",$AN41,$AB41))) -> 0.35 | Z23: =Z22+0.001 -> 160.001 | AA23: AD3 | AB23: 1 | AL23: =AL22+0.001 -> 160.001 | AM23: AD3 | AN23: 1
I24: =I23+0.001 -> 180.001 | J24: =J25 -> 0.535485 | M24: =M23+0.001 -> 180.001 | N24: =N25 -> 0.535485 | Q24: =IF($N$16<=$U$2,IF('Train (main)'!$D$23="Freight in G",$AL12,$Z12),IF($N$16<=$U$3,IF('Train (main)'!$D$23="Freight in G",$AL27,$Z27),IF('Train (main)'!$D$23="Freight in G",$AL42,$Z42))) -> 160.001 | R24: =IF($N$16<=$U$2,IF('Train (main)'!$D$23="Freight in G",$AN12,$AB12),IF($N$16<=$U$3,IF('Train (main)'!$D$23="Freight in G",$AN27,$AB27),IF('Train (main)'!$D$23="Freight in G",$AN42,$AB42))) -> 0.35 | Y24: V4 | Z24: 160 | AA24: AD3 | AB24: =AB23 -> 1 | AK24: V4 | AL24: 160 | AM24: AD3 | AN24: =AN23 -> 1
I25: =IF(I23<100,100,IF(I23<120,120,IF(I23<150,150,IF(I23<180,180,I23)))) -> 180 | J25: =AD_UIC(lambda1,I25) -> 0.535485 | M25: =IF(M23<100,100,IF(M23<120,120,IF(M23<150,150,IF(M23<180,180,M23)))) -> 180 | N25: =AD_UIC(lambda2,M25) -> 0.535485 | Q25: =IF($N$16<=$U$2,IF('Train (main)'!$D$23="Freight in G",$AL13,$Z13),IF($N$16<=$U$3,IF('Train (main)'!$D$23="Freight in G",$AL28,$Z28),IF('Train (main)'!$D$23="Freight in G",$AL43,$Z43))) -> 180 | R25: =IF($N$16<=$U$2,IF('Train (main)'!$D$23="Freight in G",$AN13,$AB13),IF($N$16<=$U$3,IF('Train (main)'!$D$23="Freight in G",$AN28,$AB28),IF('Train (main)'!$D$23="Freight in G",$AN43,$AB43))) -> 0.35 | Z25: =Z24+0.001 -> 160.001 | AA25: AD4 | AB25: 1 | AL25: =AL24+0.001 -> 160.001 | AM25: AD4 | AN25: 1
I26: =I25+0.001 -> 180.001 | J26: =J27 -> 0.52710067 | M26: =M25+0.001 -> 180.001 | N26: =N27 -> 0.52710067 | Q26: =IF($N$16<=$U$2,IF('Train (main)'!$D$23="Freight in G",$AL14,$Z14),IF($N$16<=$U$3,IF('Train (main)'!$D$23="Freight in G",$AL29,$Z29),IF('Train (main)'!$D$23="Freight in G",$AL44,$Z44))) -> 180.001 | R26: =IF($N$16<=$U$2,IF('Train (main)'!$D$23="Freight in G",$AN14,$AB14),IF($N$16<=$U$3,IF('Train (main)'!$D$23="Freight in G",$AN29,$AB29),IF('Train (main)'!$D$23="Freight in G",$AN44,$AB44))) -> 0.35 | Y26: V5 | Z26: 160 | AA26: AD4 | AB26: =AB25 -> 1 | AK26: V5 | AL26: 160 | AM26: AD4 | AN26: =AN25 -> 1
I27: 200 | J27: =AD_UIC(lambda1,I27) -> 0.52710067 | M27: 200 | N27: =AD_UIC(lambda2,M27) -> 0.52710067 | Q27: =IF($N$16<=$U$2,IF('Train (main)'!$D$23="Freight in G",$AL15,$Z15),IF($N$16<=$U$3,IF('Train (main)'!$D$23="Freight in G",$AL30,$Z30),IF('Train (main)'!$D$23="Freight in G",$AL45,$Z45))) -> 200 | R27: =IF($N$16<=$U$2,IF('Train (main)'!$D$23="Freight in G",$AN15,$AB15),IF($N$16<=$U$3,IF('Train (main)'!$D$23="Freight in G",$AN30,$AB30),IF('Train (main)'!$D$23="Freight in G",$AN45,$AB45))) -> 0.35 | Z27: =Z26+0.001 -> 160.001 | AA27: AD5 | AB27: 1 | AL27: =AL26+0.001 -> 160.001 | AM27: AD5 | AN27: 1
Y28: V6 | Z28: 160 | AA28: AD5 | AB28: =AB27 -> 1 | AK28: V6 | AL28: 160 | AM28: AD5 | AN28: =AN27 -> 1
Z29: =Z28+0.001 -> 160.001 | AA29: AD6 | AB29: 1 | AL29: =AL28+0.001 -> 160.001 | AM29: AD6 | AN29: 1
Y30: v7 | Z30: 200 | AA30: AD6 | AB30: =AB29 -> 1 | AK30: v7 | AL30: 200 | AM30: AD6 | AN30: =AN29 -> 1
Y31: Normal service brake deceleration (A_brake_normal_service_2) - Passenger/freight P | AK31: Normal service brake deceleration (A_brake_normal_service_2) - Freight G
Y32: V0 | Z32: 0 | AA32: AD0 | AB32: 0.5 | AK32: V0 | AL32: 0 | AM32: AD0 | AN32: 0.5
Y33: V1 | Z33: 80 | AA33: AD0 | AB33: =AB32 -> 0.5 | AK33: V1 | AL33: 80 | AM33: AD0 | AN33: =AN32 -> 0.5
Z34: =Z33+0.001 -> 80.001 | AA34: AD1 | AB34: 0.3 | AL34: =AL33+0.001 -> 80.001 | AM34: AD1 | AN34: 0.3
Y35: V2 | Z35: 160 | AA35: AD1 | AB35: =AB34 -> 0.3 | AK35: V2 | AL35: 90 | AM35: AD1 | AN35: =AN34 -> 0.3
Z36: =Z35+0.001 -> 160.001 | AA36: AD2 | AB36: 1 | AL36: =AL35+0.001 -> 90.001 | AM36: AD2 | AN36: 1
Y37: V3 | Z37: 160 | AA37: AD2 | AB37: =AB36 -> 1 | AK37: V3 | AL37: 120 | AM37: AD2 | AN37: =AN36 -> 1
Z38: =Z37+0.001 -> 160.001 | AA38: AD3 | AB38: 1 | AL38: =AL37+0.001 -> 120.001 | AM38: AD3 | AN38: 1
Y39: V4 | Z39: 160 | AA39: AD3 | AB39: =AB38 -> 1 | AK39: V4 | AL39: 160 | AM39: AD3 | AN39: =AN38 -> 1
Z40: =Z39+0.001 -> 160.001 | AA40: AD4 | AB40: 1 | AL40: =AL39+0.001 -> 160.001 | AM40: AD4 | AN40: 1
Y41: V5 | Z41: 160 | AA41: AD4 | AB41: =AB40 -> 1 | AK41: V5 | AL41: 160 | AM41: AD4 | AN41: =AN40 -> 1
Z42: =Z41+0.001 -> 160.001 | AA42: AD5 | AB42: 1 | AL42: =AL41+0.001 -> 160.001 | AM42: AD5 | AN42: 1
Y43: V6 | Z43: 160 | AA43: AD5 | AB43: =AB42 -> 1 | AK43: V6 | AL43: 160 | AM43: AD5 | AN43: =AN42 -> 1
Z44: =Z43+0.001 -> 160.001 | AA44: AD6 | AB44: 1 | AL44: =AL43+0.001 -> 160.001 | AM44: AD6 | AN44: 1
Y45: v7 | Z45: 200 | AA45: AD6 | AB45: =AB44 -> 1 | AK45: v7 | AL45: 200 | AM45: AD6 | AN45: =AN44 -> 1

Sheet Brake parameters (gamma) (hidden)
G3: Braking model
G4: Speed dependant deceleration
B5: Combinaton n°1 | C5: Combinaton n°2 (Brake inhibition of special brake(s) area) | G5: Combination n°1 | S5: Combination n°2
A6: Regenerative Brake | B6: X | C6: X | G6: Emergency brake deceleration | S6: Emergency brake deceleration
A7: Eddy Current Brake | B7: X | G7: V0 | H7: 0 | I7: AD0 | J7: 0.81 | S7: V0 | T7: 0 | U7: AD0 | V7: 0.72
A8: Magnetic Shoe Brake | B8: X | C8: X | G8: V1 | H8: 40 | I8: AD0 | J8: =J7 -> 0.81 | S8: V1 | T8: 40 | U8: AD0 | V8: =V7 -> 0.72
H9: =H8+0.001 -> 40.001 | I9: AD1 | J9: 0.72 | T9: =T8+0.001 -> 40.001 | U9: AD1 | V9: 0.72
G10: V2 | H10: 80 | I10: AD1 | J10: =J9 -> 0.72 | S10: V2 | T10: 80 | U10: AD1 | V10: =V9 -> 0.72
H11: =H10+0.001 -> 80.001 | I11: AD2 | J11: 0.66 | T11: =T10+0.001 -> 80.001 | U11: AD2 | V11: 0.66
G12: V3 | H12: 100 | I12: AD2 | J12: =J11 -> 0.66 | S12: V3 | T12: 100 | U12: AD2 | V12: =V11 -> 0.66
H13: =H12+0.001 -> 100.001 | I13: AD3 | J13: 0.64 | T13: =T12+0.001 -> 100.001 | U13: AD3 | V13: 0.64
G14: V4 | H14: 155 | I14: AD3 | J14: =J13 -> 0.64 | S14: V4 | T14: 155 | U14: AD3 | V14: =V13 -> 0.64
H15: =H14+0.001 -> 155.001 | I15: AD4 | J15: 0.44 | T15: =T14+0.001 -> 155.001 | U15: AD4 | V15: 0.44
G16: V5 | H16: 180 | I16: AD4 | J16: =J15 -> 0.44 | S16: V5 | T16: 180 | U16: AD4 | V16: =V15 -> 0.44
H17: =H16+0.001 -> 180.001 | I17: AD5 | J17: 0.48 | T17: =T16+0.001 -> 180.001 | U17: AD5 | V17: 0.48
G18: V6 | H18: 250 | I18: AD5 | J18: =J17 -> 0.48 | S18: V6 | T18: 250 | U18: AD5 | V18: =V17 -> 0.48
H19: =H18+0.001 -> 250.001 | I19: AD6 | J19: 0.4 | T19: =T18+0.001 -> 250.001 | U19: AD6 | V19: 0.4
G20: v7 | H20: 300 | I20: AD6 | J20: =J19 -> 0.4 | S20: v7 | T20: 300 | U20: AD6 | V20: =V19 -> 0.4
G21: Emergency Brake Confidence Level (EBCL)
G22: Correction factor Kdry_rst(V,EBCL) | S22: Correction factor Kdry_rst(V,EBCL)
G23: V0 | H23: =H7 -> 0 | I23: Kdry_rst0 | J23: 0.75 | S23: V0 | T23: =T7 -> 0 | U23: Kdry_rst0 | V23: 0.75
G24: V1 | H24: =H8 -> 40 | I24: Kdry_rst0 | J24: =J23 -> 0.75 | S24: V1 | T24: =T8 -> 40 | U24: Kdry_rst0 | V24: =V23 -> 0.75
H25: 40.001 | I25: Kdry_rst1 | J25: 0.75 | T25: 40.001 | U25: Kdry_rst1 | V25: 0.75
G26: V2 | H26: 80 | I26: Kdry_rst1 | J26: =J25 -> 0.75 | S26: V2 | T26: 80 | U26: Kdry_rst1 | V26: =V25 -> 0.75
H27: 80.001 | I27: Kdry_rst2 | J27: 0.75 | T27: 80.001 | U27: Kdry_rst2 | V27: 0.75
G28: V3 | H28: 100 | I28: Kdry_rst2 | J28: =J27 -> 0.75 | S28: V3 | T28: 100 | U28: Kdry_rst2 | V28: =V27 -> 0.75
H29: 100.001 | I29: Kdry_rst3 | J29: 0.75 | T29: 100.001 | U29: Kdry_rst3 | V29: 0.75
G30: V4 | H30: 155 | I30: Kdry_rst3 | J30: =J29 -> 0.75 | S30: V4 | T30: 155 | U30: Kdry_rst3 | V30: =V29 -> 0.75
H31: 155.001 | I31: Kdry_rst4 | J31: 0.75 | T31: 155.001 | U31: Kdry_rst4 | V31: 0.75
G32: V5 | H32: 180 | I32: Kdry_rst4 | J32: =J31 -> 0.75 | S32: V5 | T32: 180 | U32: Kdry_rst4 | V32: =V31 -> 0.75
H33: 180.001 | I33: Kdry_rst5 | J33: 0.75 | T33: 180.001 | U33: Kdry_rst5 | V33: 0.75
G34: V6 | H34: 250 | I34: Kdry_rst5 | J34: =J33 -> 0.75 | S34: V6 | T34: 250 | U34: Kdry_rst5 | V34: =V33 -> 0.75
H35: 250.001 | I35: Kdry_rst6 | J35: 0.75 | T35: 250.001 | U35: Kdry_rst6 | V35: 0.75
G36: v7 | H36: =H20 -> 300 | I36: Kdry_rst6 | J36: =J35 -> 0.75 | S36: v7 | T36: 300 | U36: Kdry_rst6 | V36: =V35 -> 0.75
G37: Correction factor Kwet_rst(V) | S37: Correction factor Kwet_rst(V)
G38: V0 | H38: =H23 -> 0 | I38: Kwet_rst0 | J38: 0.95 | S38: V0 | T38: =T23 -> 0 | U38: Kwet_rst0 | V38: 0.95
G39: V1 | H39: =H24 -> 40 | I39: Kwet_rst0 | J39: =J38 -> 0.95 | S39: V1 | T39: =T24 -> 40 | U39: Kwet_rst0 | V39: =V38 -> 0.95
H40: 40.001 | I40: Kwet_rst1 | J40: 0.95 | T40: 40.001 | U40: Kwet_rst1 | V40: 0.95
G41: V2 | H41: 80 | I41: Kwet_rst1 | J41: =J40 -> 0.95 | S41: V2 | T41: 80 | U41: Kwet_rst1 | V41: =V40 -> 0.95
H42: 80.001 | I42: Kwet_rst2 | J42: 0.95 | T42: 80.001 | U42: Kwet_rst2 | V42: 0.95
G43: V3 | H43: 100 | I43: Kwet_rst2 | J43: =J42 -> 0.95 | S43: V3 | T43: 100 | U43: Kwet_rst2 | V43: =V42 -> 0.95
H44: 100.001 | I44: Kwet_rst3 | J44: 0.95 | T44: 100.001 | U44: Kwet_rst3 | V44: 0.95
G45: V4 | H45: 155 | I45: Kwet_rst3 | J45: =J44 -> 0.95 | S45: V4 | T45: 155 | U45: Kwet_rst3 | V45: =V44 -> 0.95
H46: 155.001 | I46: Kwet_rst4 | J46: 0.95 | T46: 155.001 | U46: Kwet_rst4 | V46: 0.95
G47: V5 | H47: 180 | I47: Kwet_rst4 | J47: =J46 -> 0.95 | S47: V5 | T47: 180 | U47: Kwet_rst4 | V47: =V46 -> 0.95
H48: 180.001 | I48: Kwet_rst5 | J48: 0.95 | T48: 180.001 | U48: Kwet_rst5 | V48: 0.95
G49: V6 | H49: 250 | I49: Kwet_rst5 | J49: =J48 -> 0.95 | S49: V6 | T49: 250 | U49: Kwet_rst5 | V49: =V48 -> 0.95
H50: 250.001 | I50: Kwet_rst6 | J50: 0.95 | T50: 250.001 | U50: Kwet_rst6 | V50: 0.95
G51: v7 | H51: 300 | I51: Kwet_rst6 | J51: =J50 -> 0.95 | S51: v7 | T51: 300 | U51: Kwet_rst6 | V51: =V50 -> 0.95
G52: T_brake_emergency (seconds) | K52: 2.5 | S52: T_brake_emergency (seconds) | W52: 2.5
G53: Full service brake deceleration (A_brake_service) | S53: Full service brake deceleration (A_brake_service)
G54: V0 | H54: 0 | I54: AD0 | J54: 0.81 | S54: V0 | T54: 0 | U54: AD0 | V54: 0.81
G55: V1 | H55: 40 | I55: AD0 | J55: =J54 -> 0.81 | S55: V1 | T55: 40 | U55: AD0 | V55: =V54 -> 0.81
H56: =H55+0.001 -> 40.001 | I56: AD1 | J56: 0.72 | T56: =T55+0.001 -> 40.001 | U56: AD1 | V56: 0.72
G57: V2 | H57: 80 | I57: AD1 | J57: =J56 -> 0.72 | S57: V2 | T57: 80 | U57: AD1 | V57: =V56 -> 0.72
H58: =H57+0.001 -> 80.001 | I58: AD2 | J58: 0.66 | T58: =T57+0.001 -> 80.001 | U58: AD2 | V58: 0.66
G59: V3 | H59: 100 | I59: AD2 | J59: =J58 -> 0.66 | S59: V3 | T59: 100 | U59: AD2 | V59: =V58 -> 0.66
H60: =H59+0.001 -> 100.001 | I60: AD3 | J60: 0.65 | T60: =T59+0.001 -> 100.001 | U60: AD3 | V60: 0.65
G61: V4 | H61: 155 | I61: AD3 | J61: =J60 -> 0.65 | S61: V4 | T61: 155 | U61: AD3 | V61: =V60 -> 0.65
H62: =H61+0.001 -> 155.001 | I62: AD4 | J62: 0.45 | T62: =T61+0.001 -> 155.001 | U62: AD4 | V62: 0.45
G63: V5 | H63: 180 | I63: AD4 | J63: =J62 -> 0.45 | S63: V5 | T63: 180 | U63: AD4 | V63: =V62 -> 0.45
H64: =H63+0.001 -> 180.001 | I64: AD5 | J64: 0.49 | T64: =T63+0.001 -> 180.001 | U64: AD5 | V64: 0.49
G65: V6 | H65: 250 | I65: AD5 | J65: =J64 -> 0.49 | S65: V6 | T65: 250 | U65: AD5 | V65: =V64 -> 0.49
H66: =H65+0.001 -> 250.001 | I66: AD6 | J66: 0.41 | T66: =T65+0.001 -> 250.001 | U66: AD6 | V66: 0.41
G67: v7 | H67: 300 | I67: AD6 | J67: =J66 -> 0.41 | S67: v7 | T67: 300 | U67: AD6 | V67: =V66 -> 0.41
G68: T_brake_service (seconds) | K68: 4.8 | S68: T_brake_service (seconds) | W68: 4.8
G69: Normal service brake deceleration (A_brake_normal_service) | S69: Normal service brake deceleration (A_brake_normal_service)
G70: V0 | H70: 0 | I70: AD0 | J70: 0.3 | S70: V0 | T70: 0 | U70: AD0 | V70: 0.3
G71: V1 | H71: 150 | I71: AD0 | J71: =J70 -> 0.3 | S71: V1 | T71: 150 | U71: AD0 | V71: =V70 -> 0.3
H72: =H71+0.001 -> 150.001 | I72: AD1 | J72: 0.35 | T72: =T71+0.001 -> 150.001 | U72: AD1 | V72: 0.35
G73: V2 | H73: 280 | I73: AD1 | J73: =J72 -> 0.35 | S73: V2 | T73: 280 | U73: AD1 | V73: =V72 -> 0.35
H74: =H73+0.001 -> 280.001 | I74: AD2 | J74: 0.4 | T74: =T73+0.001 -> 280.001 | U74: AD2 | V74: 0.4
G75: V3 | H75: 280 | I75: AD2 | J75: =J74 -> 0.4 | S75: V3 | T75: 280 | U75: AD2 | V75: =V74 -> 0.4
H76: =H75+0.001 -> 280.001 | I76: AD3 | J76: 0.4 | T76: =T75+0.001 -> 280.001 | U76: AD3 | V76: 0.4
G77: V4 | H77: 280 | I77: AD3 | J77: =J76 -> 0.4 | S77: V4 | T77: 280 | U77: AD3 | V77: =V76 -> 0.4
H78: =H77+0.001 -> 280.001 | I78: AD4 | J78: 0.4 | T78: =T77+0.001 -> 280.001 | U78: AD4 | V78: 0.4
G79: V5 | H79: 280 | I79: AD4 | J79: =J78 -> 0.4 | S79: V5 | T79: 280 | U79: AD4 | V79: =V78 -> 0.4
H80: =H79+0.001 -> 280.001 | I80: AD5 | J80: 0.4 | T80: =T79+0.001 -> 280.001 | U80: AD5 | V80: 0.4
G81: V6 | H81: 280 | I81: AD5 | J81: =J80 -> 0.4 | S81: V6 | T81: 280 | U81: AD5 | V81: =V80 -> 0.4
H82: =H81+0.001 -> 280.001 | I82: AD6 | J82: 0.4 | T82: =T81+0.001 -> 280.001 | U82: AD6 | V82: 0.4
G83: v7 | H83: 300 | I83: AD6 | J83: =J82 -> 0.4 | S83: v7 | T83: 300 | U83: AD6 | V83: =V82 -> 0.4
G85: T_brake_emergency_react (seconds) | K85: 1 | S85: T_brake_emergency_react (seconds) | W85: 1
G86: T_brake_service_react (seconds) | K86: 1.2 | S86: T_brake_service_react (seconds) | W86: 1.2

Sheet Correction factor Kdry_rst (hidden)
B2: Combination n°1 | N2: Combination n°2
B3: EBCL | F3: 0.5
B4: V0 | C4: 0 | D4: Kdry_rst1 | E4: 1 | N4: V0 | O4: 0 | P4: Kdry_rst1 | Q4: 1
B5: V1 | C5: ='Brake parameters (gamma)'!H8 -> 40 | D5: Kdry_rst1 | E5: =E4 -> 1 | N5: V1 | O5: ='Brake parameters (gamma)'!T8 -> 40 | P5: Kdry_rst1 | Q5: =Q4 -> 1
C6: =C5 -> 40 | D6: Kdry_rst2 | E6: 1 | O6: =O5 -> 40 | P6: Kdry_rst2 | Q6: 1
B7: V2 | C7: ='Brake parameters (gamma)'!H10 -> 80 | D7: Kdry_rst2 | E7: =E6 -> 1 | N7: V2 | O7: ='Brake parameters (gamma)'!T10 -> 80 | P7: Kdry_rst2 | Q7: =Q6 -> 1
C8: =C7 -> 80 | D8: Kdry_rst3 | E8: 1 | O8: =O7 -> 80 | P8: Kdry_rst3 | Q8: 1
B9: V3 | C9: ='Brake parameters (gamma)'!H12 -> 100 | D9: Kdry_rst3 | E9: =E8 -> 1 | N9: V3 | O9: ='Brake parameters (gamma)'!T12 -> 100 | P9: Kdry_rst3 | Q9: =Q8 -> 1
C10: =C9 -> 100 | D10: Kdry_rst4 | E10: 1 | O10: =O9 -> 100 | P10: Kdry_rst4 | Q10: 1
B11: V4 | C11: ='Brake parameters (gamma)'!H14 -> 155 | D11: Kdry_rst4 | E11: =E10 -> 1 | N11: V4 | O11: ='Brake parameters (gamma)'!T14 -> 155 | P11: Kdry_rst4 | Q11: =Q10 -> 1
C12: =C11 -> 155 | D12: Kdry_rst5 | E12: 1 | O12: =O11 -> 155 | P12: Kdry_rst5 | Q12: 1
B13: V5 | C13: ='Brake parameters (gamma)'!H16 -> 180 | D13: Kdry_rst5 | E13: =E12 -> 1 | N13: V5 | O13: ='Brake parameters (gamma)'!T16 -> 180 | P13: Kdry_rst5 | Q13: =Q12 -> 1
C14: =C13 -> 180 | D14: Kdry_rst6 | E14: 1 | O14: =O13 -> 180 | P14: Kdry_rst6 | Q14: 1
B15: V6 | C15: ='Brake parameters (gamma)'!H18 -> 250 | D15: Kdry_rst6 | E15: =E14 -> 1 | N15: V6 | O15: ='Brake parameters (gamma)'!T18 -> 250 | P15: Kdry_rst6 | Q15: =Q14 -> 1
C16: =C15 -> 250 | D16: Kdry_rst7 | E16: 1 | O16: =O15 -> 250 | P16: Kdry_rst7 | Q16: 1
B17: v7 | C17: ='Brake parameters (gamma)'!H20 -> 300 | D17: Kdry_rst7 | E17: =E16 -> 1 | N17: v7 | O17: ='Brake parameters (gamma)'!T20 -> 300 | P17: Kdry_rst7 | Q17: =Q16 -> 1
B18: EBCL | F18: 1-10E-1
B19: V0 | C19: =C4 -> 0 | D19: Kdry_rst1 | E19: 0.9 | N19: V0 | O19: =O4 -> 0 | P19: Kdry_rst1 | Q19: 0.9
B20: V1 | C20: =C5 -> 40 | D20: Kdry_rst1 | E20: =E19 -> 0.9 | N20: V1 | O20: =O5 -> 40 | P20: Kdry_rst1 | Q20: =Q19 -> 0.9
C21: 40 | D21: Kdry_rst2 | E21: 0.9 | O21: 40 | P21: Kdry_rst2 | Q21: 0.9
B22: V2 | C22: 80 | D22: Kdry_rst2 | E22: =E21 -> 0.9 | N22: V2 | O22: 80 | P22: Kdry_rst2 | Q22: =Q21 -> 0.9
C23: 80 | D23: Kdry_rst3 | E23: 0.9 | O23: 80 | P23: Kdry_rst3 | Q23: 0.9
B24: V3 | C24: 100 | D24: Kdry_rst3 | E24: =E23 -> 0.9 | N24: V3 | O24: 100 | P24: Kdry_rst3 | Q24: =Q23 -> 0.9
C25: 100 | D25: Kdry_rst4 | E25: 0.9 | O25: 100 | P25: Kdry_rst4 | Q25: 0.9
B26: V4 | C26: 155 | D26: Kdry_rst4 | E26: =E25 -> 0.9 | N26: V4 | O26: 155 | P26: Kdry_rst4 | Q26: =Q25 -> 0.9
C27: 155 | D27: Kdry_rst5 | E27: 0.9 | O27: 155 | P27: Kdry_rst5 | Q27: 0.9
B28: V5 | C28: 180 | D28: Kdry_rst5 | E28: =E27 -> 0.9 | N28: V5 | O28: 180 | P28: Kdry_rst5 | Q28: =Q27 -> 0.9
C29: 180 | D29: Kdry_rst6 | E29: 0.9 | O29: 180 | P29: Kdry_rst6 | Q29: 0.9
B30: V6 | C30: 250 | D30: Kdry_rst6 | E30: =E29 -> 0.9 | N30: V6 | O30: 250 | P30: Kdry_rst6 | Q30: =Q29 -> 0.9
C31: 250 | D31: Kdry_rst7 | E31: 0.9 | O31: 250 | P31: Kdry_rst7 | Q31: 0.9
B32: v7 | C32: 300 | D32: Kdry_rst7 | E32: =E31 -> 0.9 | N32: v7 | O32: 300 | P32: Kdry_rst7 | Q32: =Q31 -> 0.9
B33: EBCL | F33: 1-10E-2
B34: V0 | C34: =C19 -> 0 | D34: Kdry_rst1 | E34: 0.85 | N34: V0 | O34: =O19 -> 0 | P34: Kdry_rst1 | Q34: 0.85
B35: V1 | C35: =C20 -> 40 | D35: Kdry_rst1 | E35: =E34 -> 0.85 | N35: V1 | O35: =O20 -> 40 | P35: Kdry_rst1 | Q35: =Q34 -> 0.85
C36: 40 | D36: Kdry_rst2 | E36: 0.85 | O36: =O21 -> 40 | P36: Kdry_rst2 | Q36: 0.85
B37: V2 | C37: 80 | D37: Kdry_rst2 | E37: =E36 -> 0.85 | N37: V2 | O37: 80 | P37: Kdry_rst2 | Q37: =Q36 -> 0.85
C38: 80 | D38: Kdry_rst3 | E38: 0.85 | O38: 80 | P38: Kdry_rst3 | Q38: 0.85
B39: V3 | C39: 100 | D39: Kdry_rst3 | E39: =E38 -> 0.85 | N39: V3 | O39: 100 | P39: Kdry_rst3 | Q39: =Q38 -> 0.85
C40: 100 | D40: Kdry_rst4 | E40: 0.85 | O40: 100 | P40: Kdry_rst4 | Q40: 0.85
B41: V4 | C41: 155 | D41: Kdry_rst4 | E41: =E40 -> 0.85 | N41: V4 | O41: 155 | P41: Kdry_rst4 | Q41: =Q40 -> 0.85
C42: 155 | D42: Kdry_rst5 | E42: 0.85 | O42: 155 | P42: Kdry_rst5 | Q42: 0.85
B43: V5 | C43: 180 | D43: Kdry_rst5 | E43: =E42 -> 0.85 | N43: V5 | O43: 180 | P43: Kdry_rst5 | Q43: =Q42 -> 0.85
C44: 180 | D44: Kdry_rst6 | E44: 0.85 | O44: 180 | P44: Kdry_rst6 | Q44: 0.85
B45: V6 | C45: 250 | D45: Kdry_rst6 | E45: =E44 -> 0.85 | N45: V6 | O45: 250 | P45: Kdry_rst6 | Q45: =Q44 -> 0.85
C46: 250 | D46: Kdry_rst7 | E46: 0.85 | O46: 250 | P46: Kdry_rst7 | Q46: 0.85
B47: v7 | C47: 300 | D47: Kdry_rst7 | E47: =E46 -> 0.85 | N47: v7 | O47: 300 | P47: Kdry_rst7 | Q47: =Q46 -> 0.85
B48: EBCL | F48: 1-10E-3
B49: V0 | C49: =C34 -> 0 | D49: Kdry_rst1 | E49: 0.8 | N49: V0 | O49: =O34 -> 0 | P49: Kdry_rst1 | Q49: 0.8
B50: V1 | C50: =C35 -> 40 | D50: Kdry_rst1 | E50: =E49 -> 0.8 | N50: V1 | O50: =O35 -> 40 | P50: Kdry_rst1 | Q50: =Q49 -> 0.8
C51: 40 | D51: Kdry_rst2 | E51: 0.8 | O51: =O36 -> 40 | P51: Kdry_rst2 | Q51: 0.8
B52: V2 | C52: 80 | D52: Kdry_rst2 | E52: =E51 -> 0.8 | N52: V2 | O52: =O37 -> 80 | P52: Kdry_rst2 | Q52: =Q51 -> 0.8
C53: 80 | D53: Kdry_rst3 | E53: 0.8 | O53: 80 | P53: Kdry_rst3 | Q53: 0.8
B54: V3 | C54: 100 | D54: Kdry_rst3 | E54: =E53 -> 0.8 | N54: V3 | O54: 100 | P54: Kdry_rst3 | Q54: =Q53 -> 0.8
C55: 100 | D55: Kdry_rst4 | E55: 0.8 | O55: 100 | P55: Kdry_rst4 | Q55: 0.8
B56: V4 | C56: 155 | D56: Kdry_rst4 | E56: =E55 -> 0.8 | N56: V4 | O56: 155 | P56: Kdry_rst4 | Q56: =Q55 -> 0.8
C57: 155 | D57: Kdry_rst5 | E57: 0.8 | O57: 155 | P57: Kdry_rst5 | Q57: 0.8
B58: V5 | C58: 180 | D58: Kdry_rst5 | E58: =E57 -> 0.8 | N58: V5 | O58: 180 | P58: Kdry_rst5 | Q58: =Q57 -> 0.8
C59: 180 | D59: Kdry_rst6 | E59: 0.8 | O59: 180 | P59: Kdry_rst6 | Q59: 0.8
B60: V6 | C60: 250 | D60: Kdry_rst6 | E60: =E59 -> 0.8 | N60: V6 | O60: 250 | P60: Kdry_rst6 | Q60: =Q59 -> 0.8
C61: 250 | D61: Kdry_rst7 | E61: 0.8 | O61: 250 | P61: Kdry_rst7 | Q61: 0.8
B62: v7 | C62: 300 | D62: Kdry_rst7 | E62: =E61 -> 0.8 | N62: v7 | O62: 300 | P62: Kdry_rst7 | Q62: =Q61 -> 0.8
B63: EBCL | F63: 1-10E-4
B64: V0 | C64: 0 | D64: Kdry_rst1 | E64: 0.75 | N64: V0 | O64: 0 | P64: Kdry_rst1 | Q64: 0.75
B65: V1 | C65: =C35 -> 40 | D65: Kdry_rst1 | E65: =E64 -> 0.75 | N65: V1 | O65: =O50 -> 40 | P65: Kdry_rst1 | Q65: =Q64 -> 0.75
C66: =C65 -> 40 | D66: Kdry_rst2 | E66: 0.75 | O66: =O51 -> 40 | P66: Kdry_rst2 | Q66: 0.75
B67: V2 | C67: =C52 -> 80 | D67: Kdry_rst2 | E67: =E66 -> 0.75 | N67: V2 | O67: =O52 -> 80 | P67: Kdry_rst2 | Q67: =Q66 -> 0.75
C68: =C67 -> 80 | D68: Kdry_rst3 | E68: 0.75 | O68: =O53 -> 80 | P68: Kdry_rst3 | Q68: 0.75
B69: V3 | C69: =C54 -> 100 | D69: Kdry_rst3 | E69: =E68 -> 0.75 | N69: V3 | O69: 100 | P69: Kdry_rst3 | Q69: =Q68 -> 0.75
C70: =C69 -> 100 | D70: Kdry_rst4 | E70: 0.75 | O70: 100 | P70: Kdry_rst4 | Q70: 0.75
B71: V4 | C71: =C56 -> 155 | D71: Kdry_rst4 | E71: =E70 -> 0.75 | N71: V4 | O71: 155 | P71: Kdry_rst4 | Q71: =Q70 -> 0.75
C72: =C71 -> 155 | D72: Kdry_rst5 | E72: 0.75 | O72: 155 | P72: Kdry_rst5 | Q72: 0.75
B73: V5 | C73: =C58 -> 180 | D73: Kdry_rst5 | E73: =E72 -> 0.75 | N73: V5 | O73: 180 | P73: Kdry_rst5 | Q73: =Q72 -> 0.75
C74: =C73 -> 180 | D74: Kdry_rst6 | E74: 0.75 | O74: 180 | P74: Kdry_rst6 | Q74: 0.75
B75: V6 | C75: =C60 -> 250 | D75: Kdry_rst6 | E75: =E74 -> 0.75 | N75: V6 | O75: 250 | P75: Kdry_rst6 | Q75: =Q74 -> 0.75
C76: =C75 -> 250 | D76: Kdry_rst7 | E76: 0.75 | O76: 250 | P76: Kdry_rst7 | Q76: 0.75
B77: v7 | C77: =C62 -> 300 | D77: Kdry_rst7 | E77: =E76 -> 0.75 | N77: v7 | O77: 300 | P77: Kdry_rst7 | Q77: =Q76 -> 0.75
B78: EBCL | F78: 1-10E-5
B79: V0 | C79: =C64 -> 0 | D79: Kdry_rst1 | E79: 0.7 | N79: V0 | O79: =O64 -> 0 | P79: Kdry_rst1 | Q79: 0.7
B80: V1 | C80: =C65 -> 40 | D80: Kdry_rst1 | E80: =E79 -> 0.7 | N80: V1 | O80: =O65 -> 40 | P80: Kdry_rst1 | Q80: =Q79 -> 0.7
C81: 40 | D81: Kdry_rst2 | E81: 0.7 | O81: 40 | P81: Kdry_rst2 | Q81: 0.7
B82: V2 | C82: 80 | D82: Kdry_rst2 | E82: =E81 -> 0.7 | N82: V2 | O82: 80 | P82: Kdry_rst2 | Q82: =Q81 -> 0.7
C83: 80 | D83: Kdry_rst3 | E83: 0.7 | O83: 80 | P83: Kdry_rst3 | Q83: 0.7
B84: V3 | C84: 100 | D84: Kdry_rst3 | E84: =E83 -> 0.7 | N84: V3 | O84: 100 | P84: Kdry_rst3 | Q84: =Q83 -> 0.7
C85: 100 | D85: Kdry_rst4 | E85: 0.7 | O85: 100 | P85: Kdry_rst4 | Q85: 0.7
B86: V4 | C86: 155 | D86: Kdry_rst4 | E86: =E85 -> 0.7 | N86: V4 | O86: 155 | P86: Kdry_rst4 | Q86: =Q85 -> 0.7
C87: 155 | D87: Kdry_rst5 | E87: 0.7 | O87: 155 | P87: Kdry_rst5 | Q87: 0.7
B88: V5 | C88: 180 | D88: Kdry_rst5 | E88: =E87 -> 0.7 | N88: V5 | O88: 180 | P88: Kdry_rst5 | Q88: =Q87 -> 0.7
C89: 180 | D89: Kdry_rst6 | E89: 0.7 | O89: 180 | P89: Kdry_rst6 | Q89: 0.7
B90: V6 | C90: 250 | D90: Kdry_rst6 | E90: =E89 -> 0.7 | N90: V6 | O90: 250 | P90: Kdry_rst6 | Q90: =Q89 -> 0.7
C91: 250 | D91: Kdry_rst7 | E91: 0.7 | O91: 250 | P91: Kdry_rst7 | Q91: 0.7
B92: v7 | C92: 300 | D92: Kdry_rst7 | E92: =E91 -> 0.7 | N92: v7 | O92: 300 | P92: Kdry_rst7 | Q92: =Q91 -> 0.7
B93: EBCL | F93: 1-10E-6
B94: V0 | C94: =C79 -> 0 | D94: Kdry_rst1 | E94: 0.6 | N94: V0 | O94: =O79 -> 0 | P94: Kdry_rst1 | Q94: 0.6
B95: V1 | C95: =C80 -> 40 | D95: Kdry_rst1 | E95: =E94 -> 0.6 | N95: V1 | O95: =O80 -> 40 | P95: Kdry_rst1 | Q95: =Q94 -> 0.6
C96: 40 | D96: Kdry_rst2 | E96: 0.6 | O96: 40 | P96: Kdry_rst2 | Q96: 0.6
B97: V2 | C97: 80 | D97: Kdry_rst2 | E97: =E96 -> 0.6 | N97: V2 | O97: 80 | P97: Kdry_rst2 | Q97: =Q96 -> 0.6
C98: 80 | D98: Kdry_rst3 | E98: 0.6 | O98: 80 | P98: Kdry_rst3 | Q98: 0.6
B99: V3 | C99: 100 | D99: Kdry_rst3 | E99: =E98 -> 0.6 | N99: V3 | O99: 100 | P99: Kdry_rst3 | Q99: =Q98 -> 0.6
C100: 100 | D100: Kdry_rst4 | E100: 0.6 | O100: 100 | P100: Kdry_rst4 | Q100: 0.6
B101: V4 | C101: 155 | D101: Kdry_rst4 | E101: =E100 -> 0.6 | N101: V4 | O101: 155 | P101: Kdry_rst4 | Q101: =Q100 -> 0.6
C102: 155 | D102: Kdry_rst5 | E102: 0.6 | O102: 155 | P102: Kdry_rst5 | Q102: 0.6
B103: V5 | C103: 180 | D103: Kdry_rst5 | E103: =E102 -> 0.6 | N103: V5 | O103: 180 | P103: Kdry_rst5 | Q103: =Q102 -> 0.6
C104: 180 | D104: Kdry_rst6 | E104: 0.6 | O104: 180 | P104: Kdry_rst6 | Q104: 0.6
B105: V6 | C105: 250 | D105: Kdry_rst6 | E105: =E104 -> 0.6 | N105: V6 | O105: 250 | P105: Kdry_rst6 | Q105: =Q104 -> 0.6
C106: 250 | D106: Kdry_rst7 | E106: 0.6 | O106: 250 | P106: Kdry_rst7 | Q106: 0.6
B107: v7 | C107: 300 | D107: Kdry_rst7 | E107: =E106 -> 0.6 | N107: v7 | O107: 300 | P107: Kdry_rst7 | Q107: =Q106 -> 0.6
B108: EBCL | F108: 1-10E-7
B109: V0 | C109: =C94 -> 0 | D109: Kdry_rst1 | E109: 0.45 | N109: V0 | O109: =O94 -> 0 | P109: Kdry_rst1 | Q109: 0.45
B110: V1 | C110: =C95 -> 40 | D110: Kdry_rst1 | E110: =E109 -> 0.45 | N110: V1 | O110: =O95 -> 40 | P110: Kdry_rst1 | Q110: =Q109 -> 0.45
C111: 40 | D111: Kdry_rst2 | E111: 0.45 | O111: 40 | P111: Kdry_rst2 | Q111: 0.45
B112: V2 | C112: 80 | D112: Kdry_rst2 | E112: =E111 -> 0.45 | N112: V2 | O112: 80 | P112: Kdry_rst2 | Q112: =Q111 -> 0.45
C113: 80 | D113: Kdry_rst3 | E113: 0.45 | O113: 80 | P113: Kdry_rst3 | Q113: 0.45
B114: V3 | C114: 100 | D114: Kdry_rst3 | E114: =E113 -> 0.45 | N114: V3 | O114: 100 | P114: Kdry_rst3 | Q114: =Q113 -> 0.45
C115: 100 | D115: Kdry_rst4 | E115: 0.45 | O115: 100 | P115: Kdry_rst4 | Q115: 0.45
B116: V4 | C116: 155 | D116: Kdry_rst4 | E116: =E115 -> 0.45 | N116: V4 | O116: 155 | P116: Kdry_rst4 | Q116: =Q115 -> 0.45
C117: 155 | D117: Kdry_rst5 | E117: 0.45 | O117: 155 | P117: Kdry_rst5 | Q117: 0.45
B118: V5 | C118: 180 | D118: Kdry_rst5 | E118: =E117 -> 0.45 | N118: V5 | O118: 180 | P118: Kdry_rst5 | Q118: =Q117 -> 0.45
C119: 180 | D119: Kdry_rst6 | E119: 0.45 | O119: 180 | P119: Kdry_rst6 | Q119: 0.45
B120: V6 | C120: 250 | D120: Kdry_rst6 | E120: =E119 -> 0.45 | N120: V6 | O120: 250 | P120: Kdry_rst6 | Q120: =Q119 -> 0.45
C121: 250 | D121: Kdry_rst7 | E121: 0.45 | O121: 250 | P121: Kdry_rst7 | Q121: 0.45
B122: v7 | C122: 300 | D122: Kdry_rst7 | E122: =E121 -> 0.45 | N122: v7 | O122: 300 | P122: Kdry_rst7 | Q122: =Q121 -> 0.45
B123: EBCL | F123: 1-10E-8
B124: V0 | C124: =C109 -> 0 | D124: Kdry_rst1 | E124: 0.4 | N124: V0 | O124: =O109 -> 0 | P124: Kdry_rst1 | Q124: 0.4
B125: V1 | C125: =C110 -> 40 | D125: Kdry_rst1 | E125: =E124 -> 0.4 | N125: V1 | O125: =O110 -> 40 | P125: Kdry_rst1 | Q125: =Q124 -> 0.4
C126: 40 | D126: Kdry_rst2 | E126: 0.4 | O126: 40 | P126: Kdry_rst2 | Q126: 0.4
B127: V2 | C127: 80 | D127: Kdry_rst2 | E127: =E126 -> 0.4 | N127: V2 | O127: 80 | P127: Kdry_rst2 | Q127: =Q126 -> 0.4
C128: 80 | D128: Kdry_rst3 | E128: 0.4 | O128: 80 | P128: Kdry_rst3 | Q128: 0.4
B129: V3 | C129: 100 | D129: Kdry_rst3 | E129: =E128 -> 0.4 | N129: V3 | O129: 100 | P129: Kdry_rst3 | Q129: =Q128 -> 0.4
C130: 100 | D130: Kdry_rst4 | E130: 0.4 | O130: 100 | P130: Kdry_rst4 | Q130: 0.4
B131: V4 | C131: 155 | D131: Kdry_rst4 | E131: =E130 -> 0.4 | N131: V4 | O131: 155 | P131: Kdry_rst4 | Q131: =Q130 -> 0.4
C132: 155 | D132: Kdry_rst5 | E132: 0.4 | O132: 155 | P132: Kdry_rst5 | Q132: 0.4
B133: V5 | C133: 180 | D133: Kdry_rst5 | E133: =E132 -> 0.4 | N133: V5 | O133: 180 | P133: Kdry_rst5 | Q133: =Q132 -> 0.4
C134: 180 | D134: Kdry_rst6 | E134: 0.4 | O134: 180 | P134: Kdry_rst6 | Q134: 0.4
B135: V6 | C135: 250 | D135: Kdry_rst6 | E135: =E134 -> 0.4 | N135: V6 | O135: 250 | P135: Kdry_rst6 | Q135: =Q134 -> 0.4
C136: 250 | D136: Kdry_rst7 | E136: 0.4 | O136: 250 | P136: Kdry_rst7 | Q136: 0.4
B137: v7 | C137: 300 | D137: Kdry_rst7 | E137: =E136 -> 0.4 | N137: v7 | O137: 300 | P137: Kdry_rst7 | Q137: =Q136 -> 0.4
B138: EBCL | F138: 1-10E-9
B139: V0 | C139: =C124 -> 0 | D139: Kdry_rst1 | E139: 0.4 | N139: V0 | O139: =O124 -> 0 | P139: Kdry_rst1 | Q139: 0.4
B140: V1 | C140: =C125 -> 40 | D140: Kdry_rst1 | E140: =E139 -> 0.4 | N140: V1 | O140: =O125 -> 40 | P140: Kdry_rst1 | Q140: =Q139 -> 0.4
C141: 40 | D141: Kdry_rst2 | E141: 0.4 | O141: 40 | P141: Kdry_rst2 | Q141: 0.4
B142: V2 | C142: 80 | D142: Kdry_rst2 | E142: =E141 -> 0.4 | N142: V2 | O142: 80 | P142: Kdry_rst2 | Q142: =Q141 -> 0.4
C143: 80 | D143: Kdry_rst3 | E143: 0.4 | O143: 80 | P143: Kdry_rst3 | Q143: 0.4
B144: V3 | C144: 100 | D144: Kdry_rst3 | E144: =E143 -> 0.4 | N144: V3 | O144: 100 | P144: Kdry_rst3 | Q144: =Q143 -> 0.4
C145: 100 | D145: Kdry_rst4 | E145: 0.4 | O145: 100 | P145: Kdry_rst4 | Q145: 0.4
B146: V4 | C146: 155 | D146: Kdry_rst4 | E146: =E145 -> 0.4 | N146: V4 | O146: 155 | P146: Kdry_rst4 | Q146: =Q145 -> 0.4
C147: 155 | D147: Kdry_rst5 | E147: 0.4 | O147: 155 | P147: Kdry_rst5 | Q147: 0.4
B148: V5 | C148: 180 | D148: Kdry_rst5 | E148: =E147 -> 0.4 | N148: V5 | O148: 180 | P148: Kdry_rst5 | Q148: =Q147 -> 0.4
C149: 180 | D149: Kdry_rst6 | E149: 0.4 | O149: 180 | P149: Kdry_rst6 | Q149: 0.4
B150: V6 | C150: 250 | D150: Kdry_rst6 | E150: =E149 -> 0.4 | N150: V6 | O150: 250 | P150: Kdry_rst6 | Q150: =Q149 -> 0.4
C151: 250 | D151: Kdry_rst7 | E151: 0.4 | O151: 250 | P151: Kdry_rst7 | Q151: 0.4
B152: v7 | C152: 300 | D152: Kdry_rst7 | E152: =E151 -> 0.4 | N152: v7 | O152: 300 | P152: Kdry_rst7 | Q152: =Q151 -> 0.4

Sheet Integrated correction factors
A1: Kv_int(V)
A2: Freight trains | D2: Conventional passenger trains
D3: if maximum emergency brake deceleration <= deceleration limit (National Value A_P12)
A4: Speed V (km/h) | B4: Kv_int(V) | D4: Speed V (km/h) | E4: Kv_int_x_a(V)
A5: 0 | B5: 0.7 | D5: 0 | E5: 0.7
A6: 200 | B6: =B5 -> 0.7 | D6: 25 | E6: =E5 -> 0.7
A7: =A6+0.001 -> 200.001 | B7: 0.7 | D7: =D6+0.001 -> 25.001 | E7: 0.9
A8: 200 | B8: =B7 -> 0.7 | D8: 30 | E8: =E7 -> 0.9
A9: =A8+0.001 -> 200.001 | B9: 0.7 | D9: =D8+0.001 -> 30.001 | E9: 0.7
A10: 200 | B10: =B9 -> 0.7 | D10: 100 | E10: =E9 -> 0.7
A11: =A10+0.001 -> 200.001 | B11: 0.7 | D11: =D10+0.001 -> 100.001 | E11: 0.7
A12: 200 | B12: =B11 -> 0.7 | D12: 160 | E12: =E11 -> 0.7
A13: =A12+0.001 -> 200.001 | B13: 0.7 | D13: =D12+0.001 -> 160.001 | E13: 0.7
A14: 200 | B14: =B13 -> 0.7 | D14: 200 | E14: =E13 -> 0.7
D16: if deceleration limit (National Value A_P23) >= maximum emergency brake deceleration >= deceleration limit (National Value A_P12)
D17: Speed V (km/h) | E17: Kv_int(V)
D18: =D5 -> 0 | E18: =IF(AND($D$44<MAX('Brake parameters (lambda)'!$J$16:$J$27),MAX('Brake parameters (lambda)'!$J$16:$J$27)<$F$44),(E5+((MAX('Brake parameters (lambda)'!$J$16:$J$27)-$D$44)/($F$44-$D$44))*(E31-E5)),"") -> 
D19: =D6 -> 25 | E19: =IF(AND($D$44<MAX('Brake parameters (lambda)'!$J$16:$J$27),MAX('Brake parameters (lambda)'!$J$16:$J$27)<$F$44),(E6+((MAX('Brake parameters (lambda)'!$J$16:$J$27)-$D$44)/($F$44-$D$44))*(E32-E6)),"") -> 
D20: 25.001 | E20: =IF(AND($D$44<MAX('Brake parameters (lambda)'!$J$16:$J$27),MAX('Brake parameters (lambda)'!$J$16:$J$27)<$F$44),(E7+((MAX('Brake parameters (lambda)'!$J$16:$J$27)-$D$44)/($F$44-$D$44))*(E33-E7)),"") -> 
D21: 30 | E21: =IF(AND($D$44<MAX('Brake parameters (lambda)'!$J$16:$J$27),MAX('Brake parameters (lambda)'!$J$16:$J$27)<$F$44),(E8+((MAX('Brake parameters (lambda)'!$J$16:$J$27)-$D$44)/($F$44-$D$44))*(E34-E8)),"") -> 
D22: 30.001 | E22: =IF(AND($D$44<MAX('Brake parameters (lambda)'!$J$16:$J$27),MAX('Brake parameters (lambda)'!$J$16:$J$27)<$F$44),(E9+((MAX('Brake parameters (lambda)'!$J$16:$J$27)-$D$44)/($F$44-$D$44))*(E35-E9)),"") -> 
D23: 100 | E23: =IF(AND($D$44<MAX('Brake parameters (lambda)'!$J$16:$J$27),MAX('Brake parameters (lambda)'!$J$16:$J$27)<$F$44),(E10+((MAX('Brake parameters (lambda)'!$J$16:$J$27)-$D$44)/($F$44-$D$44))*(E36-E10)),"") -> 
D24: 100.001 | E24: =IF(AND($D$44<MAX('Brake parameters (lambda)'!$J$16:$J$27),MAX('Brake parameters (lambda)'!$J$16:$J$27)<$F$44),(E11+((MAX('Brake parameters (lambda)'!$J$16:$J$27)-$D$44)/($F$44-$D$44))*(E37-E11)),"") -> 
D25: 160 | E25: =IF(AND($D$44<MAX('Brake parameters (lambda)'!$J$16:$J$27),MAX('Brake parameters (lambda)'!$J$16:$J$27)<$F$44),(E12+((MAX('Brake parameters (lambda)'!$J$16:$J$27)-$D$44)/($F$44-$D$44))*(E38-E12)),"") -> 
D26: 160.001 | E26: =IF(AND($D$44<MAX('Brake parameters (lambda)'!$J$16:$J$27),MAX('Brake parameters (lambda)'!$J$16:$J$27)<$F$44),(E13+((MAX('Brake parameters (lambda)'!$J$16:$J$27)-$D$44)/($F$44-$D$44))*(E39-E13)),"") -> 
D27: 200 | E27: =IF(AND($D$44<MAX('Brake parameters (lambda)'!$J$16:$J$27),MAX('Brake parameters (lambda)'!$J$16:$J$27)<$F$44),(E14+((MAX('Brake parameters (lambda)'!$J$16:$J$27)-$D$44)/($F$44-$D$44))*(E40-E14)),"") -> 
D29: if maximum emergency brake deceleration >= deceleration limit (National Value A_P23)
A30: Kr_int(L) | D30: Speed V (km/h) | E30: Kv_int_x_b(V)
A31: Train length L (m) | B31: Kr_int(L) | D31: =D18 -> 0 | E31: 0.7
A32: 0 | B32: 0.9 | D32: 25 | E32: =E31 -> 0.7
A33: 150 | B33: =B32 -> 0.9 | D33: 25.001 | E33: 0.7
A34: =A33+0.001 -> 150.001 | B34: 0.9 | D34: 30 | E34: =E33 -> 0.7
A35: 300 | B35: =B34 -> 0.9 | D35: 30.001 | E35: 0.7
A36: =A35+0.001 -> 300.001 | B36: 0.9 | D36: 100 | E36: =E35 -> 0.7
A37: 600 | B37: =B36 -> 0.9 | D37: 100.001 | E37: 0.7
A38: =A37+0.001 -> 600.001 | B38: 0.9 | D38: 160 | E38: =E37 -> 0.7
A39: 600 | B39: =B38 -> 0.9 | D39: 160.001 | E39: 0.7
A40: =A39+0.001 -> 600.001 | B40: 0.9 | D40: 200 | E40: =E39 -> 0.7
A41: 900 | B41: =B40 -> 0.9
D43: A_NVP12 | F43: A_NVP23
D44: 1 | F44: 1.2
D46: Kt_int
D47: 1.1

Sheet Gradient correction factors
A1: Correction factors for gradient on normal service deceleration
A2: Correction factor for positive gradients | C2: Correction factor for negative gradients
A3: Speed V (km/h) | B3: Kn+(V) (m/s2) | C3: Speed V (km/h) | D3: Kn-(V) (m/s2)
A4: 0 | B4: 0 | C4: 0 | D4: 0
A5: 25 | B5: =B4 -> 0 | C5: 25 | D5: =D4 -> 0
A6: =A5+0.001 -> 25.001 | B6: 0 | C6: =C5+0.001 -> 25.001 | D6: 0
A7: 55 | B7: =B6 -> 0 | C7: 55 | D7: =D6 -> 0
A8: =A7+0.001 -> 55.001 | B8: 0 | C8: =C7+0.001 -> 55.001 | D8: 0
A9: 100 | B9: =B8 -> 0 | C9: 100 | D9: =D8 -> 0
A10: =A9+0.001 -> 100.001 | B10: 0 | C10: =C9+0.001 -> 100.001 | D10: 0
A11: 115 | B11: =B10 -> 0 | C11: 115 | D11: =D10 -> 0
A12: =A11+0.001 -> 115.001 | B12: 0 | C12: =C11+0.001 -> 115.001 | D12: 0
A13: 200 | B13: =B12 -> 0 | C13: 200 | D13: =D12 -> 0

Sheet Lambda train deceleration (hidden)
A1: Speed (V) (km/h) | B1: A_brake_emergency (m/s2) | C1: Kv_int(V) | D1: Speed "pivot" values for Emergency brake | E1: A_brake_service (m/s2) | F1: Speed "pivot" values for Full service brake | G1: A_brake_normal_service (m/s2) | H1: Speed "pivot" values for Normal service brake | I1: Kn+(V) (m/s2) | J1: Kn-(V) (m/s2)
A2: 0 | B2: 0.751 | C2: 0.7 | E2: 0.751 | G2: 0.4 | I2: 0 | J2: 0
A3: 0.1 | B3: 0.751 | C3: 0.7 | E3: 0.751 | G3: 0.4 | I3: 0 | J3: 0
A4: 0.2 | B4: 0.751 | C4: 0.7 | E4: 0.751 | G4: 0.4 | I4: 0 | J4: 0
A5: 0.3 | B5: 0.751 | C5: 0.7 | E5: 0.751 | G5: 0.4 | I5: 0 | J5: 0
A6: 0.4 | B6: 0.751 | C6: 0.7 | E6: 0.751 | G6: 0.4 | I6: 0 | J6: 0
A7: 0.5 | B7: 0.751 | C7: 0.7 | E7: 0.751 | G7: 0.4 | I7: 0 | J7: 0
A8: 0.6 | B8: 0.751 | C8: 0.7 | E8: 0.751 | G8: 0.4 | I8: 0 | J8: 0
A9: 0.7 | B9: 0.751 | C9: 0.7 | E9: 0.751 | G9: 0.4 | I9: 0 | J9: 0
A10: 0.8 | B10: 0.751 | C10: 0.7 | E10: 0.751 | G10: 0.4 | I10: 0 | J10: 0
A11: 0.9 | B11: 0.751 | C11: 0.7 | E11: 0.751 | G11: 0.4 | I11: 0 | J11: 0
A12: 1 | B12: 0.751 | C12: 0.7 | E12: 0.751 | G12: 0.4 | I12: 0 | J12: 0
A13: 1.1 | B13: 0.751 | C13: 0.7 | E13: 0.751 | G13: 0.4 | I13: 0 | J13: 0
A14: 1.2 | B14: 0.751 | C14: 0.7 | E14: 0.751 | G14: 0.4 | I14: 0 | J14: 0
A15: 1.3 | B15: 0.751 | C15: 0.7 | E15: 0.751 | G15: 0.4 | I15: 0 | J15: 0
A16: 1.4 | B16: 0.751 | C16: 0.7 | E16: 0.751 | G16: 0.4 | I16: 0 | J16: 0
A17: 1.5 | B17: 0.751 | C17: 0.7 | E17: 0.751 | G17: 0.4 | I17: 0 | J17: 0
A18: 1.6 | B18: 0.751 | C18: 0.7 | E18: 0.751 | G18: 0.4 | I18: 0 | J18: 0
A19: 1.7 | B19: 0.751 | C19: 0.7 | E19: 0.751 | G19: 0.4 | I19: 0 | J19: 0
A20: 1.8 | B20: 0.751 | C20: 0.7 | E20: 0.751 | G20: 0.4 | I20: 0 | J20: 0
A21: 1.9 | B21: 0.751 | C21: 0.7 | E21: 0.751 | G21: 0.4 | I21: 0 | J21: 0
A22: 2 | B22: 0.751 | C22: 0.7 | E22: 0.751 | G22: 0.4 | I22: 0 | J22: 0
A23: 2.1 | B23: 0.751 | C23: 0.7 | E23: 0.751 | G23: 0.4 | I23: 0 | J23: 0
A24: 2.2 | B24: 0.751 | C24: 0.7 | E24: 0.751 | G24: 0.4 | I24: 0 | J24: 0
A25: 2.3 | B25: 0.751 | C25: 0.7 | E25: 0.751 | G25: 0.4 | I25: 0 | J25: 0
A26: 2.4 | B26: 0.751 | C26: 0.7 | E26: 0.751 | G26: 0.4 | I26: 0 | J26: 0
A27: 2.5 | B27: 0.751 | C27: 0.7 | E27: 0.751 | G27: 0.4 | I27: 0 | J27: 0
A28: 2.6 | B28: 0.751 | C28: 0.7 | E28: 0.751 | G28: 0.4 | I28: 0 | J28: 0
A29: 2.7 | B29: 0.751 | C29: 0.7 | E29: 0.751 | G29: 0.4 | I29: 0 | J29: 0
A30: 2.8 | B30: 0.751 | C30: 0.7 | E30: 0.751 | G30: 0.4 | I30: 0 | J30: 0
A31: 2.9 | B31: 0.751 | C31: 0.7 | E31: 0.751 | G31: 0.4 | I31: 0 | J31: 0
A32: 3 | B32: 0.751 | C32: 0.7 | E32: 0.751 | G32: 0.4 | I32: 0 | J32: 0
A33: 3.1 | B33: 0.751 | C33: 0.7 | E33: 0.751 | G33: 0.4 | I33: 0 | J33: 0
A34: 3.2 | B34: 0.751 | C34: 0.7 | E34: 0.751 | G34: 0.4 | I34: 0 | J34: 0
A35: 3.3 | B35: 0.751 | C35: 0.7 | E35: 0.751 | G35: 0.4 | I35: 0 | J35: 0
A36: 3.4 | B36: 0.751 | C36: 0.7 | E36: 0.751 | G36: 0.4 | I36: 0 | J36: 0
A37: 3.5 | B37: 0.751 | C37: 0.7 | E37: 0.751 | G37: 0.4 | I37: 0 | J37: 0
A38: 3.6 | B38: 0.751 | C38: 0.7 | E38: 0.751 | G38: 0.4 | I38: 0 | J38: 0
A39: 3.7 | B39: 0.751 | C39: 0.7 | E39: 0.751 | G39: 0.4 | I39: 0 | J39: 0
A40: 3.8 | B40: 0.751 | C40: 0.7 | E40: 0.751 | G40: 0.4 | I40: 0 | J40: 0
A41: 3.9 | B41: 0.751 | C41: 0.7 | E41: 0.751 | G41: 0.4 | I41: 0 | J41: 0
A42: 4 | B42: 0.751 | C42: 0.7 | E42: 0.751 | G42: 0.4 | I42: 0 | J42: 0
A43: 4.1 | B43: 0.751 | C43: 0.7 | E43: 0.751 | G43: 0.4 | I43: 0 | J43: 0
A44: 4.2 | B44: 0.751 | C44: 0.7 | E44: 0.751 | G44: 0.4 | I44: 0 | J44: 0
A45: 4.3 | B45: 0.751 | C45: 0.7 | E45: 0.751 | G45: 0.4 | I45: 0 | J45: 0
A46: 4.4 | B46: 0.751 | C46: 0.7 | E46: 0.751 | G46: 0.4 | I46: 0 | J46: 0
A47: 4.5 | B47: 0.751 | C47: 0.7 | E47: 0.751 | G47: 0.4 | I47: 0 | J47: 0
A48: 4.6 | B48: 0.751 | C48: 0.7 | E48: 0.751 | G48: 0.4 | I48: 0 | J48: 0
A49: 4.7 | B49: 0.751 | C49: 0.7 | E49: 0.751 | G49: 0.4 | I49: 0 | J49: 0
A50: 4.8 | B50: 0.751 | C50: 0.7 | E50: 0.751 | G50: 0.4 | I50: 0 | J50: 0
A51: 4.9 | B51: 0.751 | C51: 0.7 | E51: 0.751 | G51: 0.4 | I51: 0 | J51: 0
A52: 5 | B52: 0.751 | C52: 0.7 | E52: 0.751 | G52: 0.4 | I52: 0 | J52: 0
A53: 5.1 | B53: 0.751 | C53: 0.7 | E53: 0.751 | G53: 0.4 | I53: 0 | J53: 0
A54: 5.2 | B54: 0.751 | C54: 0.7 | E54: 0.751 | G54: 0.4 | I54: 0 | J54: 0
A55: 5.3 | B55: 0.751 | C55: 0.7 | E55: 0.751 | G55: 0.4 | I55: 0 | J55: 0
A56: 5.4 | B56: 0.751 | C56: 0.7 | E56: 0.751 | G56: 0.4 | I56: 0 | J56: 0
A57: 5.5 | B57: 0.751 | C57: 0.7 | E57: 0.751 | G57: 0.4 | I57: 0 | J57: 0
A58: 5.6 | B58: 0.751 | C58: 0.7 | E58: 0.751 | G58: 0.4 | I58: 0 | J58: 0
A59: 5.7 | B59: 0.751 | C59: 0.7 | E59: 0.751 | G59: 0.4 | I59: 0 | J59: 0
A60: 5.8 | B60: 0.751 | C60: 0.7 | E60: 0.751 | G60: 0.4 | I60: 0 | J60: 0
A61: 5.9 | B61: 0.751 | C61: 0.7 | E61: 0.751 | G61: 0.4 | I61: 0 | J61: 0
A62: 6 | B62: 0.751 | C62: 0.7 | E62: 0.751 | G62: 0.4 | I62: 0 | J62: 0
A63: 6.1 | B63: 0.751 | C63: 0.7 | E63: 0.751 | G63: 0.4 | I63: 0 | J63: 0
A64: 6.2 | B64: 0.751 | C64: 0.7 | E64: 0.751 | G64: 0.4 | I64: 0 | J64: 0
A65: 6.3 | B65: 0.751 | C65: 0.7 | E65: 0.751 | G65: 0.4 | I65: 0 | J65: 0
A66: 6.4 | B66: 0.751 | C66: 0.7 | E66: 0.751 | G66: 0.4 | I66: 0 | J66: 0
A67: 6.5 | B67: 0.751 | C67: 0.7 | E67: 0.751 | G67: 0.4 | I67: 0 | J67: 0
A68: 6.6 | B68: 0.751 | C68: 0.7 | E68: 0.751 | G68: 0.4 | I68: 0 | J68: 0
A69: 6.7 | B69: 0.751 | C69: 0.7 | E69: 0.751 | G69: 0.4 | I69: 0 | J69: 0
A70: 6.8 | B70: 0.751 | C70: 0.7 | E70: 0.751 | G70: 0.4 | I70: 0 | J70: 0
A71: 6.9 | B71: 0.751 | C71: 0.7 | E71: 0.751 | G71: 0.4 | I71: 0 | J71: 0
A72: 7 | B72: 0.751 | C72: 0.7 | E72: 0.751 | G72: 0.4 | I72: 0 | J72: 0
A73: 7.1 | B73: 0.751 | C73: 0.7 | E73: 0.751 | G73: 0.4 | I73: 0 | J73: 0
A74: 7.2 | B74: 0.751 | C74: 0.7 | E74: 0.751 | G74: 0.4 | I74: 0 | J74: 0
A75: 7.3 | B75: 0.751 | C75: 0.7 | E75: 0.751 | G75: 0.4 | I75: 0 | J75: 0
A76: 7.4 | B76: 0.751 | C76: 0.7 | E76: 0.751 | G76: 0.4 | I76: 0 | J76: 0
A77: 7.5 | B77: 0.751 | C77: 0.7 | E77: 0.751 | G77: 0.4 | I77: 0 | J77: 0
A78: 7.6 | B78: 0.751 | C78: 0.7 | E78: 0.751 | G78: 0.4 | I78: 0 | J78: 0
A79: 7.7 | B79: 0.751 | C79: 0.7 | E79: 0.751 | G79: 0.4 | I79: 0 | J79: 0
A80: 7.8 | B80: 0.751 | C80: 0.7 | E80: 0.751 | G80: 0.4 | I80: 0 | J80: 0
A81: 7.9 | B81: 0.751 | C81: 0.7 | E81: 0.751 | G81: 0.4 | I81: 0 | J81: 0
A82: 8 | B82: 0.751 | C82: 0.7 | E82: 0.751 | G82: 0.4 | I82: 0 | J82: 0
A83: 8.1 | B83: 0.751 | C83: 0.7 | E83: 0.751 | G83: 0.4 | I83: 0 | J83: 0
A84: 8.2 | B84: 0.751 | C84: 0.7 | E84: 0.751 | G84: 0.4 | I84: 0 | J84: 0
A85: 8.3 | B85: 0.751 | C85: 0.7 | E85: 0.751 | G85: 0.4 | I85: 0 | J85: 0
A86: 8.4 | B86: 0.751 | C86: 0.7 | E86: 0.751 | G86: 0.4 | I86: 0 | J86: 0
A87: 8.5 | B87: 0.751 | C87: 0.7 | E87: 0.751 | G87: 0.4 | I87: 0 | J87: 0
A88: 8.6 | B88: 0.751 | C88: 0.7 | E88: 0.751 | G88: 0.4 | I88: 0 | J88: 0
A89: 8.7 | B89: 0.751 | C89: 0.7 | E89: 0.751 | G89: 0.4 | I89: 0 | J89: 0
A90: 8.8 | B90: 0.751 | C90: 0.7 | E90: 0.751 | G90: 0.4 | I90: 0 | J90: 0
A91: 8.9 | B91: 0.751 | C91: 0.7 | E91: 0.751 | G91: 0.4 | I91: 0 | J91: 0
A92: 9 | B92: 0.751 | C92: 0.7 | E92: 0.751 | G92: 0.4 | I92: 0 | J92: 0
A93: 9.1 | B93: 0.751 | C93: 0.7 | E93: 0.751 | G93: 0.4 | I93: 0 | J93: 0
A94: 9.2 | B94: 0.751 | C94: 0.7 | E94: 0.751 | G94: 0.4 | I94: 0 | J94: 0
A95: 9.3 | B95: 0.751 | C95: 0.7 | E95: 0.751 | G95: 0.4 | I95: 0 | J95: 0
A96: 9.4 | B96: 0.751 | C96: 0.7 | E96: 0.751 | G96: 0.4 | I96: 0 | J96: 0
A97: 9.5 | B97: 0.751 | C97: 0.7 | E97: 0.751 | G97: 0.4 | I97: 0 | J97: 0
A98: 9.6 | B98: 0.751 | C98: 0.7 | E98: 0.751 | G98: 0.4 | I98: 0 | J98: 0
A99: 9.7 | B99: 0.751 | C99: 0.7 | E99: 0.751 | G99: 0.4 | I99: 0 | J99: 0
A100: 9.8 | B100: 0.751 | C100: 0.7 | E100: 0.751 | G100: 0.4 | I100: 0 | J100: 0
A101: 9.9 | B101: 0.751 | C101: 0.7 | E101: 0.751 | G101: 0.4 | I101: 0 | J101: 0
A102: 10 | B102: 0.751 | C102: 0.7 | E102: 0.751 | G102: 0.4 | I102: 0 | J102: 0
A103: 10.1 | B103: 0.751 | C103: 0.7 | E103: 0.751 | G103: 0.4 | I103: 0 | J103: 0
A104: 10.2 | B104: 0.751 | C104: 0.7 | E104: 0.751 | G104: 0.4 | I104: 0 | J104: 0
A105: 10.3 | B105: 0.751 | C105: 0.7 | E105: 0.751 | G105: 0.4 | I105: 0 | J105: 0
A106: 10.4 | B106: 0.751 | C106: 0.7 | E106: 0.751 | G106: 0.4 | I106: 0 | J106: 0
A107: 10.5 | B107: 0.751 | C107: 0.7 | E107: 0.751 | G107: 0.4 | I107: 0 | J107: 0
A108: 10.6 | B108: 0.751 | C108: 0.7 | E108: 0.751 | G108: 0.4 | I108: 0 | J108: 0
A109: 10.7 | B109: 0.751 | C109: 0.7 | E109: 0.751 | G109: 0.4 | I109: 0 | J109: 0
A110: 10.8 | B110: 0.751 | C110: 0.7 | E110: 0.751 | G110: 0.4 | I110: 0 | J110: 0
A111: 10.9 | B111: 0.751 | C111: 0.7 | E111: 0.751 | G111: 0.4 | I111: 0 | J111: 0
A112: 11 | B112: 0.751 | C112: 0.7 | E112: 0.751 | G112: 0.4 | I112: 0 | J112: 0
A113: 11.1 | B113: 0.751 | C113: 0.7 | E113: 0.751 | G113: 0.4 | I113: 0 | J113: 0
A114: 11.2 | B114: 0.751 | C114: 0.7 | E114: 0.751 | G114: 0.4 | I114: 0 | J114: 0
A115: 11.3 | B115: 0.751 | C115: 0.7 | E115: 0.751 | G115: 0.4 | I115: 0 | J115: 0
A116: 11.4 | B116: 0.751 | C116: 0.7 | E116: 0.751 | G116: 0.4 | I116: 0 | J116: 0
A117: 11.5 | B117: 0.751 | C117: 0.7 | E117: 0.751 | G117: 0.4 | I117: 0 | J117: 0
A118: 11.6 | B118: 0.751 | C118: 0.7 | E118: 0.751 | G118: 0.4 | I118: 0 | J118: 0
A119: 11.7 | B119: 0.751 | C119: 0.7 | E119: 0.751 | G119: 0.4 | I119: 0 | J119: 0
A120: 11.8 | B120: 0.751 | C120: 0.7 | E120: 0.751 | G120: 0.4 | I120: 0 | J120: 0
A121: 11.9 | B121: 0.751 | C121: 0.7 | E121: 0.751 | G121: 0.4 | I121: 0 | J121: 0
A122: 12 | B122: 0.751 | C122: 0.7 | E122: 0.751 | G122: 0.4 | I122: 0 | J122: 0
A123: 12.1 | B123: 0.751 | C123: 0.7 | E123: 0.751 | G123: 0.4 | I123: 0 | J123: 0
A124: 12.2 | B124: 0.751 | C124: 0.7 | E124: 0.751 | G124: 0.4 | I124: 0 | J124: 0
A125: 12.3 | B125: 0.751 | C125: 0.7 | E125: 0.751 | G125: 0.4 | I125: 0 | J125: 0
A126: 12.4 | B126: 0.751 | C126: 0.7 | E126: 0.751 | G126: 0.4 | I126: 0 | J126: 0
A127: 12.5 | B127: 0.751 | C127: 0.7 | E127: 0.751 | G127: 0.4 | I127: 0 | J127: 0
A128: 12.6 | B128: 0.751 | C128: 0.7 | E128: 0.751 | G128: 0.4 | I128: 0 | J128: 0
A129: 12.7 | B129: 0.751 | C129: 0.7 | E129: 0.751 | G129: 0.4 | I129: 0 | J129: 0
A130: 12.8 | B130: 0.751 | C130: 0.7 | E130: 0.751 | G130: 0.4 | I130: 0 | J130: 0
A131: 12.9 | B131: 0.751 | C131: 0.7 | E131: 0.751 | G131: 0.4 | I131: 0 | J131: 0
A132: 13 | B132: 0.751 | C132: 0.7 | E132: 0.751 | G132: 0.4 | I132: 0 | J132: 0
A133: 13.1 | B133: 0.751 | C133: 0.7 | E133: 0.751 | G133: 0.4 | I133: 0 | J133: 0
A134: 13.2 | B134: 0.751 | C134: 0.7 | E134: 0.751 | G134: 0.4 | I134: 0 | J134: 0
A135: 13.3 | B135: 0.751 | C135: 0.7 | E135: 0.751 | G135: 0.4 | I135: 0 | J135: 0
A136: 13.4 | B136: 0.751 | C136: 0.7 | E136: 0.751 | G136: 0.4 | I136: 0 | J136: 0
A137: 13.5 | B137: 0.751 | C137: 0.7 | E137: 0.751 | G137: 0.4 | I137: 0 | J137: 0
A138: 13.6 | B138: 0.751 | C138: 0.7 | E138: 0.751 | G138: 0.4 | I138: 0 | J138: 0
A139: 13.7 | B139: 0.751 | C139: 0.7 | E139: 0.751 | G139: 0.4 | I139: 0 | J139: 0
A140: 13.8 | B140: 0.751 | C140: 0.7 | E140: 0.751 | G140: 0.4 | I140: 0 | J140: 0
A141: 13.9 | B141: 0.751 | C141: 0.7 | E141: 0.751 | G141: 0.4 | I141: 0 | J141: 0
A142: 14 | B142: 0.751 | C142: 0.7 | E142: 0.751 | G142: 0.4 | I142: 0 | J142: 0
A143: 14.1 | B143: 0.751 | C143: 0.7 | E143: 0.751 | G143: 0.4 | I143: 0 | J143: 0
A144: 14.2 | B144: 0.751 | C144: 0.7 | E144: 0.751 | G144: 0.4 | I144: 0 | J144: 0
A145: 14.3 | B145: 0.751 | C145: 0.7 | E145: 0.751 | G145: 0.4 | I145: 0 | J145: 0
A146: 14.4 | B146: 0.751 | C146: 0.7 | E146: 0.751 | G146: 0.4 | I146: 0 | J146: 0
A147: 14.5 | B147: 0.751 | C147: 0.7 | E147: 0.751 | G147: 0.4 | I147: 0 | J147: 0
A148: 14.6 | B148: 0.751 | C148: 0.7 | E148: 0.751 | G148: 0.4 | I148: 0 | J148: 0
A149: 14.7 | B149: 0.751 | C149: 0.7 | E149: 0.751 | G149: 0.4 | I149: 0 | J149: 0
A150: 14.8 | B150: 0.751 | C150: 0.7 | E150: 0.751 | G150: 0.4 | I150: 0 | J150: 0
A151: 14.9 | B151: 0.751 | C151: 0.7 | E151: 0.751 | G151: 0.4 | I151: 0 | J151: 0
A152: 15 | B152: 0.751 | C152: 0.7 | E152: 0.751 | G152: 0.4 | I152: 0 | J152: 0
A153: 15.1 | B153: 0.751 | C153: 0.7 | E153: 0.751 | G153: 0.4 | I153: 0 | J153: 0
A154: 15.2 | B154: 0.751 | C154: 0.7 | E154: 0.751 | G154: 0.4 | I154: 0 | J154: 0
A155: 15.3 | B155: 0.751 | C155: 0.7 | E155: 0.751 | G155: 0.4 | I155: 0 | J155: 0
A156: 15.4 | B156: 0.751 | C156: 0.7 | E156: 0.751 | G156: 0.4 | I156: 0 | J156: 0
A157: 15.5 | B157: 0.751 | C157: 0.7 | E157: 0.751 | G157: 0.4 | I157: 0 | J157: 0
A158: 15.6 | B158: 0.751 | C158: 0.7 | E158: 0.751 | G158: 0.4 | I158: 0 | J158: 0
A159: 15.7 | B159: 0.751 | C159: 0.7 | E159: 0.751 | G159: 0.4 | I159: 0 | J159: 0
A160: 15.8 | B160: 0.751 | C160: 0.7 | E160: 0.751 | G160: 0.4 | I160: 0 | J160: 0
A161: 15.9 | B161: 0.751 | C161: 0.7 | E161: 0.751 | G161: 0.4 | I161: 0 | J161: 0
A162: 16 | B162: 0.751 | C162: 0.7 | E162: 0.751 | G162: 0.4 | I162: 0 | J162: 0
A163: 16.1 | B163: 0.751 | C163: 0.7 | E163: 0.751 | G163: 0.4 | I163: 0 | J163: 0
A164: 16.2 | B164: 0.751 | C164: 0.7 | E164: 0.751 | G164: 0.4 | I164: 0 | J164: 0
A165: 16.3 | B165: 0.751 | C165: 0.7 | E165: 0.751 | G165: 0.4 | I165: 0 | J165: 0
A166: 16.4 | B166: 0.751 | C166: 0.7 | E166: 0.751 | G166: 0.4 | I166: 0 | J166: 0
A167: 16.5 | B167: 0.751 | C167: 0.7 | E167: 0.751 | G167: 0.4 | I167: 0 | J167: 0
A168: 16.6 | B168: 0.751 | C168: 0.7 | E168: 0.751 | G168: 0.4 | I168: 0 | J168: 0
A169: 16.7 | B169: 0.751 | C169: 0.7 | E169: 0.751 | G169: 0.4 | I169: 0 | J169: 0
A170: 16.8 | B170: 0.751 | C170: 0.7 | E170: 0.751 | G170: 0.4 | I170: 0 | J170: 0
A171: 16.9 | B171: 0.751 | C171: 0.7 | E171: 0.751 | G171: 0.4 | I171: 0 | J171: 0
A172: 17 | B172: 0.751 | C172: 0.7 | E172: 0.751 | G172: 0.4 | I172: 0 | J172: 0
A173: 17.1 | B173: 0.751 | C173: 0.7 | E173: 0.751 | G173: 0.4 | I173: 0 | J173: 0
A174: 17.2 | B174: 0.751 | C174: 0.7 | E174: 0.751 | G174: 0.4 | I174: 0 | J174: 0
A175: 17.3 | B175: 0.751 | C175: 0.7 | E175: 0.751 | G175: 0.4 | I175: 0 | J175: 0
A176: 17.4 | B176: 0.751 | C176: 0.7 | E176: 0.751 | G176: 0.4 | I176: 0 | J176: 0
A177: 17.5 | B177: 0.751 | C177: 0.7 | E177: 0.751 | G177: 0.4 | I177: 0 | J177: 0
A178: 17.6 | B178: 0.751 | C178: 0.7 | E178: 0.751 | G178: 0.4 | I178: 0 | J178: 0
A179: 17.7 | B179: 0.751 | C179: 0.7 | E179: 0.751 | G179: 0.4 | I179: 0 | J179: 0
A180: 17.8 | B180: 0.751 | C180: 0.7 | E180: 0.751 | G180: 0.4 | I180: 0 | J180: 0
A181: 17.9 | B181: 0.751 | C181: 0.7 | E181: 0.751 | G181: 0.4 | I181: 0 | J181: 0
A182: 18 | B182: 0.751 | C182: 0.7 | E182: 0.751 | G182: 0.4 | I182: 0 | J182: 0
A183: 18.1 | B183: 0.751 | C183: 0.7 | E183: 0.751 | G183: 0.4 | I183: 0 | J183: 0
A184: 18.2 | B184: 0.751 | C184: 0.7 | E184: 0.751 | G184: 0.4 | I184: 0 | J184: 0
A185: 18.3 | B185: 0.751 | C185: 0.7 | E185: 0.751 | G185: 0.4 | I185: 0 | J185: 0
A186: 18.4 | B186: 0.751 | C186: 0.7 | E186: 0.751 | G186: 0.4 | I186: 0 | J186: 0
A187: 18.5 | B187: 0.751 | C187: 0.7 | E187: 0.751 | G187: 0.4 | I187: 0 | J187: 0
A188: 18.6 | B188: 0.751 | C188: 0.7 | E188: 0.751 | G188: 0.4 | I188: 0 | J188: 0
A189: 18.7 | B189: 0.751 | C189: 0.7 | E189: 0.751 | G189: 0.4 | I189: 0 | J189: 0
A190: 18.8 | B190: 0.751 | C190: 0.7 | E190: 0.751 | G190: 0.4 | I190: 0 | J190: 0
A191: 18.9 | B191: 0.751 | C191: 0.7 | E191: 0.751 | G191: 0.4 | I191: 0 | J191: 0
A192: 19 | B192: 0.751 | C192: 0.7 | E192: 0.751 | G192: 0.4 | I192: 0 | J192: 0
A193: 19.1 | B193: 0.751 | C193: 0.7 | E193: 0.751 | G193: 0.4 | I193: 0 | J193: 0
A194: 19.2 | B194: 0.751 | C194: 0.7 | E194: 0.751 | G194: 0.4 | I194: 0 | J194: 0
A195: 19.3 | B195: 0.751 | C195: 0.7 | E195: 0.751 | G195: 0.4 | I195: 0 | J195: 0
A196: 19.4 | B196: 0.751 | C196: 0.7 | E196: 0.751 | G196: 0.4 | I196: 0 | J196: 0
A197: 19.5 | B197: 0.751 | C197: 0.7 | E197: 0.751 | G197: 0.4 | I197: 0 | J197: 0
A198: 19.6 | B198: 0.751 | C198: 0.7 | E198: 0.751 | G198: 0.4 | I198: 0 | J198: 0
A199: 19.7 | B199: 0.751 | C199: 0.7 | E199: 0.751 | G199: 0.4 | I199: 0 | J199: 0
A200: 19.8 | B200: 0.751 | C200: 0.7 | E200: 0.751 | G200: 0.4 | I200: 0 | J200: 0
... 2292 more rows

Sheet Gamma train deceleration (hidden)
A1: Speed (V) (km/h) | B1: A_brake_emergency 1 (m/s2) | C1: Kdry_rst(V) 1 | D1: Kwet_rst(V) 1 | E1: Pivot speed values for combination 1 | F1: A_brake_emergency 2 (m/s2) | G1: Kdry_rst(V) 2 | H1: Kwet_rst(V) 2 | I1: Pivot speed values for combination 2 | J1: A_brake_service 1 (m/s2) | K1: Pivot speed values for combination 1 | L1: A_brake_service 2 (m/s2) | M1: Pivot speed values for combination 2 | N1: A_brake_normal_service 1 (m/s2) | O1: Pivot speed values for combination 1 | P1: A_brake_normal_service 2 (m/s2) | Q1: Pivot speed values for combination 2 | R1: Kn+(V) (m/s2) | S1: Kn-(V) (m/s2)
A2: 0 | B2: 0.81 | C2: 0.75 | D2: 0.95 | F2: 0.72 | G2: 0.75 | H2: 0.95 | J2: 0.81 | L2: 0.81 | N2: 0.3 | P2: 0.3 | R2: 0 | S2: 0
A3: 0.1 | B3: 0.81 | C3: 0.75 | D3: 0.95 | F3: 0.72 | G3: 0.75 | H3: 0.95 | J3: 0.81 | L3: 0.81 | N3: 0.3 | P3: 0.3 | R3: 0 | S3: 0
A4: 0.2 | B4: 0.81 | C4: 0.75 | D4: 0.95 | F4: 0.72 | G4: 0.75 | H4: 0.95 | J4: 0.81 | L4: 0.81 | N4: 0.3 | P4: 0.3 | R4: 0 | S4: 0
A5: 0.3 | B5: 0.81 | C5: 0.75 | D5: 0.95 | F5: 0.72 | G5: 0.75 | H5: 0.95 | J5: 0.81 | L5: 0.81 | N5: 0.3 | P5: 0.3 | R5: 0 | S5: 0
A6: 0.4 | B6: 0.81 | C6: 0.75 | D6: 0.95 | F6: 0.72 | G6: 0.75 | H6: 0.95 | J6: 0.81 | L6: 0.81 | N6: 0.3 | P6: 0.3 | R6: 0 | S6: 0
A7: 0.5 | B7: 0.81 | C7: 0.75 | D7: 0.95 | F7: 0.72 | G7: 0.75 | H7: 0.95 | J7: 0.81 | L7: 0.81 | N7: 0.3 | P7: 0.3 | R7: 0 | S7: 0
A8: 0.6 | B8: 0.81 | C8: 0.75 | D8: 0.95 | F8: 0.72 | G8: 0.75 | H8: 0.95 | J8: 0.81 | L8: 0.81 | N8: 0.3 | P8: 0.3 | R8: 0 | S8: 0
A9: 0.7 | B9: 0.81 | C9: 0.75 | D9: 0.95 | F9: 0.72 | G9: 0.75 | H9: 0.95 | J9: 0.81 | L9: 0.81 | N9: 0.3 | P9: 0.3 | R9: 0 | S9: 0
A10: 0.8 | B10: 0.81 | C10: 0.75 | D10: 0.95 | F10: 0.72 | G10: 0.75 | H10: 0.95 | J10: 0.81 | L10: 0.81 | N10: 0.3 | P10: 0.3 | R10: 0 | S10: 0
A11: 0.9 | B11: 0.81 | C11: 0.75 | D11: 0.95 | F11: 0.72 | G11: 0.75 | H11: 0.95 | J11: 0.81 | L11: 0.81 | N11: 0.3 | P11: 0.3 | R11: 0 | S11: 0
A12: 1 | B12: 0.81 | C12: 0.75 | D12: 0.95 | F12: 0.72 | G12: 0.75 | H12: 0.95 | J12: 0.81 | L12: 0.81 | N12: 0.3 | P12: 0.3 | R12: 0 | S12: 0
A13: 1.1 | B13: 0.81 | C13: 0.75 | D13: 0.95 | F13: 0.72 | G13: 0.75 | H13: 0.95 | J13: 0.81 | L13: 0.81 | N13: 0.3 | P13: 0.3 | R13: 0 | S13: 0
A14: 1.2 | B14: 0.81 | C14: 0.75 | D14: 0.95 | F14: 0.72 | G14: 0.75 | H14: 0.95 | J14: 0.81 | L14: 0.81 | N14: 0.3 | P14: 0.3 | R14: 0 | S14: 0
A15: 1.3 | B15: 0.81 | C15: 0.75 | D15: 0.95 | F15: 0.72 | G15: 0.75 | H15: 0.95 | J15: 0.81 | L15: 0.81 | N15: 0.3 | P15: 0.3 | R15: 0 | S15: 0
A16: 1.4 | B16: 0.81 | C16: 0.75 | D16: 0.95 | F16: 0.72 | G16: 0.75 | H16: 0.95 | J16: 0.81 | L16: 0.81 | N16: 0.3 | P16: 0.3 | R16: 0 | S16: 0
A17: 1.5 | B17: 0.81 | C17: 0.75 | D17: 0.95 | F17: 0.72 | G17: 0.75 | H17: 0.95 | J17: 0.81 | L17: 0.81 | N17: 0.3 | P17: 0.3 | R17: 0 | S17: 0
A18: 1.6 | B18: 0.81 | C18: 0.75 | D18: 0.95 | F18: 0.72 | G18: 0.75 | H18: 0.95 | J18: 0.81 | L18: 0.81 | N18: 0.3 | P18: 0.3 | R18: 0 | S18: 0
A19: 1.7 | B19: 0.81 | C19: 0.75 | D19: 0.95 | F19: 0.72 | G19: 0.75 | H19: 0.95 | J19: 0.81 | L19: 0.81 | N19: 0.3 | P19: 0.3 | R19: 0 | S19: 0
A20: 1.8 | B20: 0.81 | C20: 0.75 | D20: 0.95 | F20: 0.72 | G20: 0.75 | H20: 0.95 | J20: 0.81 | L20: 0.81 | N20: 0.3 | P20: 0.3 | R20: 0 | S20: 0
A21: 1.9 | B21: 0.81 | C21: 0.75 | D21: 0.95 | F21: 0.72 | G21: 0.75 | H21: 0.95 | J21: 0.81 | L21: 0.81 | N21: 0.3 | P21: 0.3 | R21: 0 | S21: 0
A22: 2 | B22: 0.81 | C22: 0.75 | D22: 0.95 | F22: 0.72 | G22: 0.75 | H22: 0.95 | J22: 0.81 | L22: 0.81 | N22: 0.3 | P22: 0.3 | R22: 0 | S22: 0
A23: 2.1 | B23: 0.81 | C23: 0.75 | D23: 0.95 | F23: 0.72 | G23: 0.75 | H23: 0.95 | J23: 0.81 | L23: 0.81 | N23: 0.3 | P23: 0.3 | R23: 0 | S23: 0
A24: 2.2 | B24: 0.81 | C24: 0.75 | D24: 0.95 | F24: 0.72 | G24: 0.75 | H24: 0.95 | J24: 0.81 | L24: 0.81 | N24: 0.3 | P24: 0.3 | R24: 0 | S24: 0
A25: 2.3 | B25: 0.81 | C25: 0.75 | D25: 0.95 | F25: 0.72 | G25: 0.75 | H25: 0.95 | J25: 0.81 | L25: 0.81 | N25: 0.3 | P25: 0.3 | R25: 0 | S25: 0
A26: 2.4 | B26: 0.81 | C26: 0.75 | D26: 0.95 | F26: 0.72 | G26: 0.75 | H26: 0.95 | J26: 0.81 | L26: 0.81 | N26: 0.3 | P26: 0.3 | R26: 0 | S26: 0
A27: 2.5 | B27: 0.81 | C27: 0.75 | D27: 0.95 | F27: 0.72 | G27: 0.75 | H27: 0.95 | J27: 0.81 | L27: 0.81 | N27: 0.3 | P27: 0.3 | R27: 0 | S27: 0
A28: 2.6 | B28: 0.81 | C28: 0.75 | D28: 0.95 | F28: 0.72 | G28: 0.75 | H28: 0.95 | J28: 0.81 | L28: 0.81 | N28: 0.3 | P28: 0.3 | R28: 0 | S28: 0
A29: 2.7 | B29: 0.81 | C29: 0.75 | D29: 0.95 | F29: 0.72 | G29: 0.75 | H29: 0.95 | J29: 0.81 | L29: 0.81 | N29: 0.3 | P29: 0.3 | R29: 0 | S29: 0
A30: 2.8 | B30: 0.81 | C30: 0.75 | D30: 0.95 | F30: 0.72 | G30: 0.75 | H30: 0.95 | J30: 0.81 | L30: 0.81 | N30: 0.3 | P30: 0.3 | R30: 0 | S30: 0
A31: 2.9 | B31: 0.81 | C31: 0.75 | D31: 0.95 | F31: 0.72 | G31: 0.75 | H31: 0.95 | J31: 0.81 | L31: 0.81 | N31: 0.3 | P31: 0.3 | R31: 0 | S31: 0
A32: 3 | B32: 0.81 | C32: 0.75 | D32: 0.95 | F32: 0.72 | G32: 0.75 | H32: 0.95 | J32: 0.81 | L32: 0.81 | N32: 0.3 | P32: 0.3 | R32: 0 | S32: 0
A33: 3.1 | B33: 0.81 | C33: 0.75 | D33: 0.95 | F33: 0.72 | G33: 0.75 | H33: 0.95 | J33: 0.81 | L33: 0.81 | N33: 0.3 | P33: 0.3 | R33: 0 | S33: 0
A34: 3.2 | B34: 0.81 | C34: 0.75 | D34: 0.95 | F34: 0.72 | G34: 0.75 | H34: 0.95 | J34: 0.81 | L34: 0.81 | N34: 0.3 | P34: 0.3 | R34: 0 | S34: 0
A35: 3.3 | B35: 0.81 | C35: 0.75 | D35: 0.95 | F35: 0.72 | G35: 0.75 | H35: 0.95 | J35: 0.81 | L35: 0.81 | N35: 0.3 | P35: 0.3 | R35: 0 | S35: 0
A36: 3.4 | B36: 0.81 | C36: 0.75 | D36: 0.95 | F36: 0.72 | G36: 0.75 | H36: 0.95 | J36: 0.81 | L36: 0.81 | N36: 0.3 | P36: 0.3 | R36: 0 | S36: 0
A37: 3.5 | B37: 0.81 | C37: 0.75 | D37: 0.95 | F37: 0.72 | G37: 0.75 | H37: 0.95 | J37: 0.81 | L37: 0.81 | N37: 0.3 | P37: 0.3 | R37: 0 | S37: 0
A38: 3.6 | B38: 0.81 | C38: 0.75 | D38: 0.95 | F38: 0.72 | G38: 0.75 | H38: 0.95 | J38: 0.81 | L38: 0.81 | N38: 0.3 | P38: 0.3 | R38: 0 | S38: 0
A39: 3.7 | B39: 0.81 | C39: 0.75 | D39: 0.95 | F39: 0.72 | G39: 0.75 | H39: 0.95 | J39: 0.81 | L39: 0.81 | N39: 0.3 | P39: 0.3 | R39: 0 | S39: 0
A40: 3.8 | B40: 0.81 | C40: 0.75 | D40: 0.95 | F40: 0.72 | G40: 0.75 | H40: 0.95 | J40: 0.81 | L40: 0.81 | N40: 0.3 | P40: 0.3 | R40: 0 | S40: 0
A41: 3.9 | B41: 0.81 | C41: 0.75 | D41: 0.95 | F41: 0.72 | G41: 0.75 | H41: 0.95 | J41: 0.81 | L41: 0.81 | N41: 0.3 | P41: 0.3 | R41: 0 | S41: 0
A42: 4 | B42: 0.81 | C42: 0.75 | D42: 0.95 | F42: 0.72 | G42: 0.75 | H42: 0.95 | J42: 0.81 | L42: 0.81 | N42: 0.3 | P42: 0.3 | R42: 0 | S42: 0
A43: 4.1 | B43: 0.81 | C43: 0.75 | D43: 0.95 | F43: 0.72 | G43: 0.75 | H43: 0.95 | J43: 0.81 | L43: 0.81 | N43: 0.3 | P43: 0.3 | R43: 0 | S43: 0
A44: 4.2 | B44: 0.81 | C44: 0.75 | D44: 0.95 | F44: 0.72 | G44: 0.75 | H44: 0.95 | J44: 0.81 | L44: 0.81 | N44: 0.3 | P44: 0.3 | R44: 0 | S44: 0
A45: 4.3 | B45: 0.81 | C45: 0.75 | D45: 0.95 | F45: 0.72 | G45: 0.75 | H45: 0.95 | J45: 0.81 | L45: 0.81 | N45: 0.3 | P45: 0.3 | R45: 0 | S45: 0
A46: 4.4 | B46: 0.81 | C46: 0.75 | D46: 0.95 | F46: 0.72 | G46: 0.75 | H46: 0.95 | J46: 0.81 | L46: 0.81 | N46: 0.3 | P46: 0.3 | R46: 0 | S46: 0
A47: 4.5 | B47: 0.81 | C47: 0.75 | D47: 0.95 | F47: 0.72 | G47: 0.75 | H47: 0.95 | J47: 0.81 | L47: 0.81 | N47: 0.3 | P47: 0.3 | R47: 0 | S47: 0
A48: 4.6 | B48: 0.81 | C48: 0.75 | D48: 0.95 | F48: 0.72 | G48: 0.75 | H48: 0.95 | J48: 0.81 | L48: 0.81 | N48: 0.3 | P48: 0.3 | R48: 0 | S48: 0
A49: 4.7 | B49: 0.81 | C49: 0.75 | D49: 0.95 | F49: 0.72 | G49: 0.75 | H49: 0.95 | J49: 0.81 | L49: 0.81 | N49: 0.3 | P49: 0.3 | R49: 0 | S49: 0
A50: 4.8 | B50: 0.81 | C50: 0.75 | D50: 0.95 | F50: 0.72 | G50: 0.75 | H50: 0.95 | J50: 0.81 | L50: 0.81 | N50: 0.3 | P50: 0.3 | R50: 0 | S50: 0
A51: 4.9 | B51: 0.81 | C51: 0.75 | D51: 0.95 | F51: 0.72 | G51: 0.75 | H51: 0.95 | J51: 0.81 | L51: 0.81 | N51: 0.3 | P51: 0.3 | R51: 0 | S51: 0
A52: 5 | B52: 0.81 | C52: 0.75 | D52: 0.95 | F52: 0.72 | G52: 0.75 | H52: 0.95 | J52: 0.81 | L52: 0.81 | N52: 0.3 | P52: 0.3 | R52: 0 | S52: 0
A53: 5.1 | B53: 0.81 | C53: 0.75 | D53: 0.95 | F53: 0.72 | G53: 0.75 | H53: 0.95 | J53: 0.81 | L53: 0.81 | N53: 0.3 | P53: 0.3 | R53: 0 | S53: 0
A54: 5.2 | B54: 0.81 | C54: 0.75 | D54: 0.95 | F54: 0.72 | G54: 0.75 | H54: 0.95 | J54: 0.81 | L54: 0.81 | N54: 0.3 | P54: 0.3 | R54: 0 | S54: 0
A55: 5.3 | B55: 0.81 | C55: 0.75 | D55: 0.95 | F55: 0.72 | G55: 0.75 | H55: 0.95 | J55: 0.81 | L55: 0.81 | N55: 0.3 | P55: 0.3 | R55: 0 | S55: 0
A56: 5.4 | B56: 0.81 | C56: 0.75 | D56: 0.95 | F56: 0.72 | G56: 0.75 | H56: 0.95 | J56: 0.81 | L56: 0.81 | N56: 0.3 | P56: 0.3 | R56: 0 | S56: 0
A57: 5.5 | B57: 0.81 | C57: 0.75 | D57: 0.95 | F57: 0.72 | G57: 0.75 | H57: 0.95 | J57: 0.81 | L57: 0.81 | N57: 0.3 | P57: 0.3 | R57: 0 | S57: 0
A58: 5.6 | B58: 0.81 | C58: 0.75 | D58: 0.95 | F58: 0.72 | G58: 0.75 | H58: 0.95 | J58: 0.81 | L58: 0.81 | N58: 0.3 | P58: 0.3 | R58: 0 | S58: 0
A59: 5.7 | B59: 0.81 | C59: 0.75 | D59: 0.95 | F59: 0.72 | G59: 0.75 | H59: 0.95 | J59: 0.81 | L59: 0.81 | N59: 0.3 | P59: 0.3 | R59: 0 | S59: 0
A60: 5.8 | B60: 0.81 | C60: 0.75 | D60: 0.95 | F60: 0.72 | G60: 0.75 | H60: 0.95 | J60: 0.81 | L60: 0.81 | N60: 0.3 | P60: 0.3 | R60: 0 | S60: 0
A61: 5.9 | B61: 0.81 | C61: 0.75 | D61: 0.95 | F61: 0.72 | G61: 0.75 | H61: 0.95 | J61: 0.81 | L61: 0.81 | N61: 0.3 | P61: 0.3 | R61: 0 | S61: 0
A62: 6 | B62: 0.81 | C62: 0.75 | D62: 0.95 | F62: 0.72 | G62: 0.75 | H62: 0.95 | J62: 0.81 | L62: 0.81 | N62: 0.3 | P62: 0.3 | R62: 0 | S62: 0
A63: 6.1 | B63: 0.81 | C63: 0.75 | D63: 0.95 | F63: 0.72 | G63: 0.75 | H63: 0.95 | J63: 0.81 | L63: 0.81 | N63: 0.3 | P63: 0.3 | R63: 0 | S63: 0
A64: 6.2 | B64: 0.81 | C64: 0.75 | D64: 0.95 | F64: 0.72 | G64: 0.75 | H64: 0.95 | J64: 0.81 | L64: 0.81 | N64: 0.3 | P64: 0.3 | R64: 0 | S64: 0
A65: 6.3 | B65: 0.81 | C65: 0.75 | D65: 0.95 | F65: 0.72 | G65: 0.75 | H65: 0.95 | J65: 0.81 | L65: 0.81 | N65: 0.3 | P65: 0.3 | R65: 0 | S65: 0
A66: 6.4 | B66: 0.81 | C66: 0.75 | D66: 0.95 | F66: 0.72 | G66: 0.75 | H66: 0.95 | J66: 0.81 | L66: 0.81 | N66: 0.3 | P66: 0.3 | R66: 0 | S66: 0
A67: 6.5 | B67: 0.81 | C67: 0.75 | D67: 0.95 | F67: 0.72 | G67: 0.75 | H67: 0.95 | J67: 0.81 | L67: 0.81 | N67: 0.3 | P67: 0.3 | R67: 0 | S67: 0
A68: 6.6 | B68: 0.81 | C68: 0.75 | D68: 0.95 | F68: 0.72 | G68: 0.75 | H68: 0.95 | J68: 0.81 | L68: 0.81 | N68: 0.3 | P68: 0.3 | R68: 0 | S68: 0
A69: 6.7 | B69: 0.81 | C69: 0.75 | D69: 0.95 | F69: 0.72 | G69: 0.75 | H69: 0.95 | J69: 0.81 | L69: 0.81 | N69: 0.3 | P69: 0.3 | R69: 0 | S69: 0
A70: 6.8 | B70: 0.81 | C70: 0.75 | D70: 0.95 | F70: 0.72 | G70: 0.75 | H70: 0.95 | J70: 0.81 | L70: 0.81 | N70: 0.3 | P70: 0.3 | R70: 0 | S70: 0
A71: 6.9 | B71: 0.81 | C71: 0.75 | D71: 0.95 | F71: 0.72 | G71: 0.75 | H71: 0.95 | J71: 0.81 | L71: 0.81 | N71: 0.3 | P71: 0.3 | R71: 0 | S71: 0
A72: 7 | B72: 0.81 | C72: 0.75 | D72: 0.95 | F72: 0.72 | G72: 0.75 | H72: 0.95 | J72: 0.81 | L72: 0.81 | N72: 0.3 | P72: 0.3 | R72: 0 | S72: 0
A73: 7.1 | B73: 0.81 | C73: 0.75 | D73: 0.95 | F73: 0.72 | G73: 0.75 | H73: 0.95 | J73: 0.81 | L73: 0.81 | N73: 0.3 | P73: 0.3 | R73: 0 | S73: 0
A74: 7.2 | B74: 0.81 | C74: 0.75 | D74: 0.95 | F74: 0.72 | G74: 0.75 | H74: 0.95 | J74: 0.81 | L74: 0.81 | N74: 0.3 | P74: 0.3 | R74: 0 | S74: 0
A75: 7.3 | B75: 0.81 | C75: 0.75 | D75: 0.95 | F75: 0.72 | G75: 0.75 | H75: 0.95 | J75: 0.81 | L75: 0.81 | N75: 0.3 | P75: 0.3 | R75: 0 | S75: 0
A76: 7.4 | B76: 0.81 | C76: 0.75 | D76: 0.95 | F76: 0.72 | G76: 0.75 | H76: 0.95 | J76: 0.81 | L76: 0.81 | N76: 0.3 | P76: 0.3 | R76: 0 | S76: 0
A77: 7.5 | B77: 0.81 | C77: 0.75 | D77: 0.95 | F77: 0.72 | G77: 0.75 | H77: 0.95 | J77: 0.81 | L77: 0.81 | N77: 0.3 | P77: 0.3 | R77: 0 | S77: 0
A78: 7.6 | B78: 0.81 | C78: 0.75 | D78: 0.95 | F78: 0.72 | G78: 0.75 | H78: 0.95 | J78: 0.81 | L78: 0.81 | N78: 0.3 | P78: 0.3 | R78: 0 | S78: 0
A79: 7.7 | B79: 0.81 | C79: 0.75 | D79: 0.95 | F79: 0.72 | G79: 0.75 | H79: 0.95 | J79: 0.81 | L79: 0.81 | N79: 0.3 | P79: 0.3 | R79: 0 | S79: 0
A80: 7.8 | B80: 0.81 | C80: 0.75 | D80: 0.95 | F80: 0.72 | G80: 0.75 | H80: 0.95 | J80: 0.81 | L80: 0.81 | N80: 0.3 | P80: 0.3 | R80: 0 | S80: 0
A81: 7.9 | B81: 0.81 | C81: 0.75 | D81: 0.95 | F81: 0.72 | G81: 0.75 | H81: 0.95 | J81: 0.81 | L81: 0.81 | N81: 0.3 | P81: 0.3 | R81: 0 | S81: 0
A82: 8 | B82: 0.81 | C82: 0.75 | D82: 0.95 | F82: 0.72 | G82: 0.75 | H82: 0.95 | J82: 0.81 | L82: 0.81 | N82: 0.3 | P82: 0.3 | R82: 0 | S82: 0
A83: 8.1 | B83: 0.81 | C83: 0.75 | D83: 0.95 | F83: 0.72 | G83: 0.75 | H83: 0.95 | J83: 0.81 | L83: 0.81 | N83: 0.3 | P83: 0.3 | R83: 0 | S83: 0
A84: 8.2 | B84: 0.81 | C84: 0.75 | D84: 0.95 | F84: 0.72 | G84: 0.75 | H84: 0.95 | J84: 0.81 | L84: 0.81 | N84: 0.3 | P84: 0.3 | R84: 0 | S84: 0
A85: 8.3 | B85: 0.81 | C85: 0.75 | D85: 0.95 | F85: 0.72 | G85: 0.75 | H85: 0.95 | J85: 0.81 | L85: 0.81 | N85: 0.3 | P85: 0.3 | R85: 0 | S85: 0
A86: 8.4 | B86: 0.81 | C86: 0.75 | D86: 0.95 | F86: 0.72 | G86: 0.75 | H86: 0.95 | J86: 0.81 | L86: 0.81 | N86: 0.3 | P86: 0.3 | R86: 0 | S86: 0
A87: 8.5 | B87: 0.81 | C87: 0.75 | D87: 0.95 | F87: 0.72 | G87: 0.75 | H87: 0.95 | J87: 0.81 | L87: 0.81 | N87: 0.3 | P87: 0.3 | R87: 0 | S87: 0
A88: 8.6 | B88: 0.81 | C88: 0.75 | D88: 0.95 | F88: 0.72 | G88: 0.75 | H88: 0.95 | J88: 0.81 | L88: 0.81 | N88: 0.3 | P88: 0.3 | R88: 0 | S88: 0
A89: 8.7 | B89: 0.81 | C89: 0.75 | D89: 0.95 | F89: 0.72 | G89: 0.75 | H89: 0.95 | J89: 0.81 | L89: 0.81 | N89: 0.3 | P89: 0.3 | R89: 0 | S89: 0
A90: 8.8 | B90: 0.81 | C90: 0.75 | D90: 0.95 | F90: 0.72 | G90: 0.75 | H90: 0.95 | J90: 0.81 | L90: 0.81 | N90: 0.3 | P90: 0.3 | R90: 0 | S90: 0
A91: 8.9 | B91: 0.81 | C91: 0.75 | D91: 0.95 | F91: 0.72 | G91: 0.75 | H91: 0.95 | J91: 0.81 | L91: 0.81 | N91: 0.3 | P91: 0.3 | R91: 0 | S91: 0
A92: 9 | B92: 0.81 | C92: 0.75 | D92: 0.95 | F92: 0.72 | G92: 0.75 | H92: 0.95 | J92: 0.81 | L92: 0.81 | N92: 0.3 | P92: 0.3 | R92: 0 | S92: 0
A93: 9.1 | B93: 0.81 | C93: 0.75 | D93: 0.95 | F93: 0.72 | G93: 0.75 | H93: 0.95 | J93: 0.81 | L93: 0.81 | N93: 0.3 | P93: 0.3 | R93: 0 | S93: 0
A94: 9.2 | B94: 0.81 | C94: 0.75 | D94: 0.95 | F94: 0.72 | G94: 0.75 | H94: 0.95 | J94: 0.81 | L94: 0.81 | N94: 0.3 | P94: 0.3 | R94: 0 | S94: 0
A95: 9.3 | B95: 0.81 | C95: 0.75 | D95: 0.95 | F95: 0.72 | G95: 0.75 | H95: 0.95 | J95: 0.81 | L95: 0.81 | N95: 0.3 | P95: 0.3 | R95: 0 | S95: 0
A96: 9.4 | B96: 0.81 | C96: 0.75 | D96: 0.95 | F96: 0.72 | G96: 0.75 | H96: 0.95 | J96: 0.81 | L96: 0.81 | N96: 0.3 | P96: 0.3 | R96: 0 | S96: 0
A97: 9.5 | B97: 0.81 | C97: 0.75 | D97: 0.95 | F97: 0.72 | G97: 0.75 | H97: 0.95 | J97: 0.81 | L97: 0.81 | N97: 0.3 | P97: 0.3 | R97: 0 | S97: 0
A98: 9.6 | B98: 0.81 | C98: 0.75 | D98: 0.95 | F98: 0.72 | G98: 0.75 | H98: 0.95 | J98: 0.81 | L98: 0.81 | N98: 0.3 | P98: 0.3 | R98: 0 | S98: 0
A99: 9.7 | B99: 0.81 | C99: 0.75 | D99: 0.95 | F99: 0.72 | G99: 0.75 | H99: 0.95 | J99: 0.81 | L99: 0.81 | N99: 0.3 | P99: 0.3 | R99: 0 | S99: 0
A100: 9.8 | B100: 0.81 | C100: 0.75 | D100: 0.95 | F100: 0.72 | G100: 0.75 | H100: 0.95 | J100: 0.81 | L100: 0.81 | N100: 0.3 | P100: 0.3 | R100: 0 | S100: 0
A101: 9.9 | B101: 0.81 | C101: 0.75 | D101: 0.95 | F101: 0.72 | G101: 0.75 | H101: 0.95 | J101: 0.81 | L101: 0.81 | N101: 0.3 | P101: 0.3 | R101: 0 | S101: 0
A102: 10 | B102: 0.81 | C102: 0.75 | D102: 0.95 | F102: 0.72 | G102: 0.75 | H102: 0.95 | J102: 0.81 | L102: 0.81 | N102: 0.3 | P102: 0.3 | R102: 0 | S102: 0
A103: 10.1 | B103: 0.81 | C103: 0.75 | D103: 0.95 | F103: 0.72 | G103: 0.75 | H103: 0.95 | J103: 0.81 | L103: 0.81 | N103: 0.3 | P103: 0.3 | R103: 0 | S103: 0
A104: 10.2 | B104: 0.81 | C104: 0.75 | D104: 0.95 | F104: 0.72 | G104: 0.75 | H104: 0.95 | J104: 0.81 | L104: 0.81 | N104: 0.3 | P104: 0.3 | R104: 0 | S104: 0
A105: 10.3 | B105: 0.81 | C105: 0.75 | D105: 0.95 | F105: 0.72 | G105: 0.75 | H105: 0.95 | J105: 0.81 | L105: 0.81 | N105: 0.3 | P105: 0.3 | R105: 0 | S105: 0
A106: 10.4 | B106: 0.81 | C106: 0.75 | D106: 0.95 | F106: 0.72 | G106: 0.75 | H106: 0.95 | J106: 0.81 | L106: 0.81 | N106: 0.3 | P106: 0.3 | R106: 0 | S106: 0
A107: 10.5 | B107: 0.81 | C107: 0.75 | D107: 0.95 | F107: 0.72 | G107: 0.75 | H107: 0.95 | J107: 0.81 | L107: 0.81 | N107: 0.3 | P107: 0.3 | R107: 0 | S107: 0
A108: 10.6 | B108: 0.81 | C108: 0.75 | D108: 0.95 | F108: 0.72 | G108: 0.75 | H108: 0.95 | J108: 0.81 | L108: 0.81 | N108: 0.3 | P108: 0.3 | R108: 0 | S108: 0
A109: 10.7 | B109: 0.81 | C109: 0.75 | D109: 0.95 | F109: 0.72 | G109: 0.75 | H109: 0.95 | J109: 0.81 | L109: 0.81 | N109: 0.3 | P109: 0.3 | R109: 0 | S109: 0
A110: 10.8 | B110: 0.81 | C110: 0.75 | D110: 0.95 | F110: 0.72 | G110: 0.75 | H110: 0.95 | J110: 0.81 | L110: 0.81 | N110: 0.3 | P110: 0.3 | R110: 0 | S110: 0
A111: 10.9 | B111: 0.81 | C111: 0.75 | D111: 0.95 | F111: 0.72 | G111: 0.75 | H111: 0.95 | J111: 0.81 | L111: 0.81 | N111: 0.3 | P111: 0.3 | R111: 0 | S111: 0
A112: 11 | B112: 0.81 | C112: 0.75 | D112: 0.95 | F112: 0.72 | G112: 0.75 | H112: 0.95 | J112: 0.81 | L112: 0.81 | N112: 0.3 | P112: 0.3 | R112: 0 | S112: 0
A113: 11.1 | B113: 0.81 | C113: 0.75 | D113: 0.95 | F113: 0.72 | G113: 0.75 | H113: 0.95 | J113: 0.81 | L113: 0.81 | N113: 0.3 | P113: 0.3 | R113: 0 | S113: 0
A114: 11.2 | B114: 0.81 | C114: 0.75 | D114: 0.95 | F114: 0.72 | G114: 0.75 | H114: 0.95 | J114: 0.81 | L114: 0.81 | N114: 0.3 | P114: 0.3 | R114: 0 | S114: 0
A115: 11.3 | B115: 0.81 | C115: 0.75 | D115: 0.95 | F115: 0.72 | G115: 0.75 | H115: 0.95 | J115: 0.81 | L115: 0.81 | N115: 0.3 | P115: 0.3 | R115: 0 | S115: 0
A116: 11.4 | B116: 0.81 | C116: 0.75 | D116: 0.95 | F116: 0.72 | G116: 0.75 | H116: 0.95 | J116: 0.81 | L116: 0.81 | N116: 0.3 | P116: 0.3 | R116: 0 | S116: 0
A117: 11.5 | B117: 0.81 | C117: 0.75 | D117: 0.95 | F117: 0.72 | G117: 0.75 | H117: 0.95 | J117: 0.81 | L117: 0.81 | N117: 0.3 | P117: 0.3 | R117: 0 | S117: 0
A118: 11.6 | B118: 0.81 | C118: 0.75 | D118: 0.95 | F118: 0.72 | G118: 0.75 | H118: 0.95 | J118: 0.81 | L118: 0.81 | N118: 0.3 | P118: 0.3 | R118: 0 | S118: 0
A119: 11.7 | B119: 0.81 | C119: 0.75 | D119: 0.95 | F119: 0.72 | G119: 0.75 | H119: 0.95 | J119: 0.81 | L119: 0.81 | N119: 0.3 | P119: 0.3 | R119: 0 | S119: 0
A120: 11.8 | B120: 0.81 | C120: 0.75 | D120: 0.95 | F120: 0.72 | G120: 0.75 | H120: 0.95 | J120: 0.81 | L120: 0.81 | N120: 0.3 | P120: 0.3 | R120: 0 | S120: 0
A121: 11.9 | B121: 0.81 | C121: 0.75 | D121: 0.95 | F121: 0.72 | G121: 0.75 | H121: 0.95 | J121: 0.81 | L121: 0.81 | N121: 0.3 | P121: 0.3 | R121: 0 | S121: 0
A122: 12 | B122: 0.81 | C122: 0.75 | D122: 0.95 | F122: 0.72 | G122: 0.75 | H122: 0.95 | J122: 0.81 | L122: 0.81 | N122: 0.3 | P122: 0.3 | R122: 0 | S122: 0
A123: 12.1 | B123: 0.81 | C123: 0.75 | D123: 0.95 | F123: 0.72 | G123: 0.75 | H123: 0.95 | J123: 0.81 | L123: 0.81 | N123: 0.3 | P123: 0.3 | R123: 0 | S123: 0
A124: 12.2 | B124: 0.81 | C124: 0.75 | D124: 0.95 | F124: 0.72 | G124: 0.75 | H124: 0.95 | J124: 0.81 | L124: 0.81 | N124: 0.3 | P124: 0.3 | R124: 0 | S124: 0
A125: 12.3 | B125: 0.81 | C125: 0.75 | D125: 0.95 | F125: 0.72 | G125: 0.75 | H125: 0.95 | J125: 0.81 | L125: 0.81 | N125: 0.3 | P125: 0.3 | R125: 0 | S125: 0
A126: 12.4 | B126: 0.81 | C126: 0.75 | D126: 0.95 | F126: 0.72 | G126: 0.75 | H126: 0.95 | J126: 0.81 | L126: 0.81 | N126: 0.3 | P126: 0.3 | R126: 0 | S126: 0
A127: 12.5 | B127: 0.81 | C127: 0.75 | D127: 0.95 | F127: 0.72 | G127: 0.75 | H127: 0.95 | J127: 0.81 | L127: 0.81 | N127: 0.3 | P127: 0.3 | R127: 0 | S127: 0
A128: 12.6 | B128: 0.81 | C128: 0.75 | D128: 0.95 | F128: 0.72 | G128: 0.75 | H128: 0.95 | J128: 0.81 | L128: 0.81 | N128: 0.3 | P128: 0.3 | R128: 0 | S128: 0
A129: 12.7 | B129: 0.81 | C129: 0.75 | D129: 0.95 | F129: 0.72 | G129: 0.75 | H129: 0.95 | J129: 0.81 | L129: 0.81 | N129: 0.3 | P129: 0.3 | R129: 0 | S129: 0
A130: 12.8 | B130: 0.81 | C130: 0.75 | D130: 0.95 | F130: 0.72 | G130: 0.75 | H130: 0.95 | J130: 0.81 | L130: 0.81 | N130: 0.3 | P130: 0.3 | R130: 0 | S130: 0
A131: 12.9 | B131: 0.81 | C131: 0.75 | D131: 0.95 | F131: 0.72 | G131: 0.75 | H131: 0.95 | J131: 0.81 | L131: 0.81 | N131: 0.3 | P131: 0.3 | R131: 0 | S131: 0
A132: 13 | B132: 0.81 | C132: 0.75 | D132: 0.95 | F132: 0.72 | G132: 0.75 | H132: 0.95 | J132: 0.81 | L132: 0.81 | N132: 0.3 | P132: 0.3 | R132: 0 | S132: 0
A133: 13.1 | B133: 0.81 | C133: 0.75 | D133: 0.95 | F133: 0.72 | G133: 0.75 | H133: 0.95 | J133: 0.81 | L133: 0.81 | N133: 0.3 | P133: 0.3 | R133: 0 | S133: 0
A134: 13.2 | B134: 0.81 | C134: 0.75 | D134: 0.95 | F134: 0.72 | G134: 0.75 | H134: 0.95 | J134: 0.81 | L134: 0.81 | N134: 0.3 | P134: 0.3 | R134: 0 | S134: 0
A135: 13.3 | B135: 0.81 | C135: 0.75 | D135: 0.95 | F135: 0.72 | G135: 0.75 | H135: 0.95 | J135: 0.81 | L135: 0.81 | N135: 0.3 | P135: 0.3 | R135: 0 | S135: 0
A136: 13.4 | B136: 0.81 | C136: 0.75 | D136: 0.95 | F136: 0.72 | G136: 0.75 | H136: 0.95 | J136: 0.81 | L136: 0.81 | N136: 0.3 | P136: 0.3 | R136: 0 | S136: 0
A137: 13.5 | B137: 0.81 | C137: 0.75 | D137: 0.95 | F137: 0.72 | G137: 0.75 | H137: 0.95 | J137: 0.81 | L137: 0.81 | N137: 0.3 | P137: 0.3 | R137: 0 | S137: 0
A138: 13.6 | B138: 0.81 | C138: 0.75 | D138: 0.95 | F138: 0.72 | G138: 0.75 | H138: 0.95 | J138: 0.81 | L138: 0.81 | N138: 0.3 | P138: 0.3 | R138: 0 | S138: 0
A139: 13.7 | B139: 0.81 | C139: 0.75 | D139: 0.95 | F139: 0.72 | G139: 0.75 | H139: 0.95 | J139: 0.81 | L139: 0.81 | N139: 0.3 | P139: 0.3 | R139: 0 | S139: 0
A140: 13.8 | B140: 0.81 | C140: 0.75 | D140: 0.95 | F140: 0.72 | G140: 0.75 | H140: 0.95 | J140: 0.81 | L140: 0.81 | N140: 0.3 | P140: 0.3 | R140: 0 | S140: 0
A141: 13.9 | B141: 0.81 | C141: 0.75 | D141: 0.95 | F141: 0.72 | G141: 0.75 | H141: 0.95 | J141: 0.81 | L141: 0.81 | N141: 0.3 | P141: 0.3 | R141: 0 | S141: 0
A142: 14 | B142: 0.81 | C142: 0.75 | D142: 0.95 | F142: 0.72 | G142: 0.75 | H142: 0.95 | J142: 0.81 | L142: 0.81 | N142: 0.3 | P142: 0.3 | R142: 0 | S142: 0
A143: 14.1 | B143: 0.81 | C143: 0.75 | D143: 0.95 | F143: 0.72 | G143: 0.75 | H143: 0.95 | J143: 0.81 | L143: 0.81 | N143: 0.3 | P143: 0.3 | R143: 0 | S143: 0
A144: 14.2 | B144: 0.81 | C144: 0.75 | D144: 0.95 | F144: 0.72 | G144: 0.75 | H144: 0.95 | J144: 0.81 | L144: 0.81 | N144: 0.3 | P144: 0.3 | R144: 0 | S144: 0
A145: 14.3 | B145: 0.81 | C145: 0.75 | D145: 0.95 | F145: 0.72 | G145: 0.75 | H145: 0.95 | J145: 0.81 | L145: 0.81 | N145: 0.3 | P145: 0.3 | R145: 0 | S145: 0
A146: 14.4 | B146: 0.81 | C146: 0.75 | D146: 0.95 | F146: 0.72 | G146: 0.75 | H146: 0.95 | J146: 0.81 | L146: 0.81 | N146: 0.3 | P146: 0.3 | R146: 0 | S146: 0
A147: 14.5 | B147: 0.81 | C147: 0.75 | D147: 0.95 | F147: 0.72 | G147: 0.75 | H147: 0.95 | J147: 0.81 | L147: 0.81 | N147: 0.3 | P147: 0.3 | R147: 0 | S147: 0
A148: 14.6 | B148: 0.81 | C148: 0.75 | D148: 0.95 | F148: 0.72 | G148: 0.75 | H148: 0.95 | J148: 0.81 | L148: 0.81 | N148: 0.3 | P148: 0.3 | R148: 0 | S148: 0
A149: 14.7 | B149: 0.81 | C149: 0.75 | D149: 0.95 | F149: 0.72 | G149: 0.75 | H149: 0.95 | J149: 0.81 | L149: 0.81 | N149: 0.3 | P149: 0.3 | R149: 0 | S149: 0
A150: 14.8 | B150: 0.81 | C150: 0.75 | D150: 0.95 | F150: 0.72 | G150: 0.75 | H150: 0.95 | J150: 0.81 | L150: 0.81 | N150: 0.3 | P150: 0.3 | R150: 0 | S150: 0
A151: 14.9 | B151: 0.81 | C151: 0.75 | D151: 0.95 | F151: 0.72 | G151: 0.75 | H151: 0.95 | J151: 0.81 | L151: 0.81 | N151: 0.3 | P151: 0.3 | R151: 0 | S151: 0
A152: 15 | B152: 0.81 | C152: 0.75 | D152: 0.95 | F152: 0.72 | G152: 0.75 | H152: 0.95 | J152: 0.81 | L152: 0.81 | N152: 0.3 | P152: 0.3 | R152: 0 | S152: 0
A153: 15.1 | B153: 0.81 | C153: 0.75 | D153: 0.95 | F153: 0.72 | G153: 0.75 | H153: 0.95 | J153: 0.81 | L153: 0.81 | N153: 0.3 | P153: 0.3 | R153: 0 | S153: 0
A154: 15.2 | B154: 0.81 | C154: 0.75 | D154: 0.95 | F154: 0.72 | G154: 0.75 | H154: 0.95 | J154: 0.81 | L154: 0.81 | N154: 0.3 | P154: 0.3 | R154: 0 | S154: 0
A155: 15.3 | B155: 0.81 | C155: 0.75 | D155: 0.95 | F155: 0.72 | G155: 0.75 | H155: 0.95 | J155: 0.81 | L155: 0.81 | N155: 0.3 | P155: 0.3 | R155: 0 | S155: 0
A156: 15.4 | B156: 0.81 | C156: 0.75 | D156: 0.95 | F156: 0.72 | G156: 0.75 | H156: 0.95 | J156: 0.81 | L156: 0.81 | N156: 0.3 | P156: 0.3 | R156: 0 | S156: 0
A157: 15.5 | B157: 0.81 | C157: 0.75 | D157: 0.95 | F157: 0.72 | G157: 0.75 | H157: 0.95 | J157: 0.81 | L157: 0.81 | N157: 0.3 | P157: 0.3 | R157: 0 | S157: 0
A158: 15.6 | B158: 0.81 | C158: 0.75 | D158: 0.95 | F158: 0.72 | G158: 0.75 | H158: 0.95 | J158: 0.81 | L158: 0.81 | N158: 0.3 | P158: 0.3 | R158: 0 | S158: 0
A159: 15.7 | B159: 0.81 | C159: 0.75 | D159: 0.95 | F159: 0.72 | G159: 0.75 | H159: 0.95 | J159: 0.81 | L159: 0.81 | N159: 0.3 | P159: 0.3 | R159: 0 | S159: 0
A160: 15.8 | B160: 0.81 | C160: 0.75 | D160: 0.95 | F160: 0.72 | G160: 0.75 | H160: 0.95 | J160: 0.81 | L160: 0.81 | N160: 0.3 | P160: 0.3 | R160: 0 | S160: 0
A161: 15.9 | B161: 0.81 | C161: 0.75 | D161: 0.95 | F161: 0.72 | G161: 0.75 | H161: 0.95 | J161: 0.81 | L161: 0.81 | N161: 0.3 | P161: 0.3 | R161: 0 | S161: 0
A162: 16 | B162: 0.81 | C162: 0.75 | D162: 0.95 | F162: 0.72 | G162: 0.75 | H162: 0.95 | J162: 0.81 | L162: 0.81 | N162: 0.3 | P162: 0.3 | R162: 0 | S162: 0
A163: 16.1 | B163: 0.81 | C163: 0.75 | D163: 0.95 | F163: 0.72 | G163: 0.75 | H163: 0.95 | J163: 0.81 | L163: 0.81 | N163: 0.3 | P163: 0.3 | R163: 0 | S163: 0
A164: 16.2 | B164: 0.81 | C164: 0.75 | D164: 0.95 | F164: 0.72 | G164: 0.75 | H164: 0.95 | J164: 0.81 | L164: 0.81 | N164: 0.3 | P164: 0.3 | R164: 0 | S164: 0
A165: 16.3 | B165: 0.81 | C165: 0.75 | D165: 0.95 | F165: 0.72 | G165: 0.75 | H165: 0.95 | J165: 0.81 | L165: 0.81 | N165: 0.3 | P165: 0.3 | R165: 0 | S165: 0
A166: 16.4 | B166: 0.81 | C166: 0.75 | D166: 0.95 | F166: 0.72 | G166: 0.75 | H166: 0.95 | J166: 0.81 | L166: 0.81 | N166: 0.3 | P166: 0.3 | R166: 0 | S166: 0
A167: 16.5 | B167: 0.81 | C167: 0.75 | D167: 0.95 | F167: 0.72 | G167: 0.75 | H167: 0.95 | J167: 0.81 | L167: 0.81 | N167: 0.3 | P167: 0.3 | R167: 0 | S167: 0
A168: 16.6 | B168: 0.81 | C168: 0.75 | D168: 0.95 | F168: 0.72 | G168: 0.75 | H168: 0.95 | J168: 0.81 | L168: 0.81 | N168: 0.3 | P168: 0.3 | R168: 0 | S168: 0
A169: 16.7 | B169: 0.81 | C169: 0.75 | D169: 0.95 | F169: 0.72 | G169: 0.75 | H169: 0.95 | J169: 0.81 | L169: 0.81 | N169: 0.3 | P169: 0.3 | R169: 0 | S169: 0
A170: 16.8 | B170: 0.81 | C170: 0.75 | D170: 0.95 | F170: 0.72 | G170: 0.75 | H170: 0.95 | J170: 0.81 | L170: 0.81 | N170: 0.3 | P170: 0.3 | R170: 0 | S170: 0
A171: 16.9 | B171: 0.81 | C171: 0.75 | D171: 0.95 | F171: 0.72 | G171: 0.75 | H171: 0.95 | J171: 0.81 | L171: 0.81 | N171: 0.3 | P171: 0.3 | R171: 0 | S171: 0
A172: 17 | B172: 0.81 | C172: 0.75 | D172: 0.95 | F172: 0.72 | G172: 0.75 | H172: 0.95 | J172: 0.81 | L172: 0.81 | N172: 0.3 | P172: 0.3 | R172: 0 | S172: 0
A173: 17.1 | B173: 0.81 | C173: 0.75 | D173: 0.95 | F173: 0.72 | G173: 0.75 | H173: 0.95 | J173: 0.81 | L173: 0.81 | N173: 0.3 | P173: 0.3 | R173: 0 | S173: 0
A174: 17.2 | B174: 0.81 | C174: 0.75 | D174: 0.95 | F174: 0.72 | G174: 0.75 | H174: 0.95 | J174: 0.81 | L174: 0.81 | N174: 0.3 | P174: 0.3 | R174: 0 | S174: 0
A175: 17.3 | B175: 0.81 | C175: 0.75 | D175: 0.95 | F175: 0.72 | G175: 0.75 | H175: 0.95 | J175: 0.81 | L175: 0.81 | N175: 0.3 | P175: 0.3 | R175: 0 | S175: 0
A176: 17.4 | B176: 0.81 | C176: 0.75 | D176: 0.95 | F176: 0.72 | G176: 0.75 | H176: 0.95 | J176: 0.81 | L176: 0.81 | N176: 0.3 | P176: 0.3 | R176: 0 | S176: 0
A177: 17.5 | B177: 0.81 | C177: 0.75 | D177: 0.95 | F177: 0.72 | G177: 0.75 | H177: 0.95 | J177: 0.81 | L177: 0.81 | N177: 0.3 | P177: 0.3 | R177: 0 | S177: 0
A178: 17.6 | B178: 0.81 | C178: 0.75 | D178: 0.95 | F178: 0.72 | G178: 0.75 | H178: 0.95 | J178: 0.81 | L178: 0.81 | N178: 0.3 | P178: 0.3 | R178: 0 | S178: 0
A179: 17.7 | B179: 0.81 | C179: 0.75 | D179: 0.95 | F179: 0.72 | G179: 0.75 | H179: 0.95 | J179: 0.81 | L179: 0.81 | N179: 0.3 | P179: 0.3 | R179: 0 | S179: 0
A180: 17.8 | B180: 0.81 | C180: 0.75 | D180: 0.95 | F180: 0.72 | G180: 0.75 | H180: 0.95 | J180: 0.81 | L180: 0.81 | N180: 0.3 | P180: 0.3 | R180: 0 | S180: 0
A181: 17.9 | B181: 0.81 | C181: 0.75 | D181: 0.95 | F181: 0.72 | G181: 0.75 | H181: 0.95 | J181: 0.81 | L181: 0.81 | N181: 0.3 | P181: 0.3 | R181: 0 | S181: 0
A182: 18 | B182: 0.81 | C182: 0.75 | D182: 0.95 | F182: 0.72 | G182: 0.75 | H182: 0.95 | J182: 0.81 | L182: 0.81 | N182: 0.3 | P182: 0.3 | R182: 0 | S182: 0
A183: 18.1 | B183: 0.81 | C183: 0.75 | D183: 0.95 | F183: 0.72 | G183: 0.75 | H183: 0.95 | J183: 0.81 | L183: 0.81 | N183: 0.3 | P183: 0.3 | R183: 0 | S183: 0
A184: 18.2 | B184: 0.81 | C184: 0.75 | D184: 0.95 | F184: 0.72 | G184: 0.75 | H184: 0.95 | J184: 0.81 | L184: 0.81 | N184: 0.3 | P184: 0.3 | R184: 0 | S184: 0
A185: 18.3 | B185: 0.81 | C185: 0.75 | D185: 0.95 | F185: 0.72 | G185: 0.75 | H185: 0.95 | J185: 0.81 | L185: 0.81 | N185: 0.3 | P185: 0.3 | R185: 0 | S185: 0
A186: 18.4 | B186: 0.81 | C186: 0.75 | D186: 0.95 | F186: 0.72 | G186: 0.75 | H186: 0.95 | J186: 0.81 | L186: 0.81 | N186: 0.3 | P186: 0.3 | R186: 0 | S186: 0
A187: 18.5 | B187: 0.81 | C187: 0.75 | D187: 0.95 | F187: 0.72 | G187: 0.75 | H187: 0.95 | J187: 0.81 | L187: 0.81 | N187: 0.3 | P187: 0.3 | R187: 0 | S187: 0
A188: 18.6 | B188: 0.81 | C188: 0.75 | D188: 0.95 | F188: 0.72 | G188: 0.75 | H188: 0.95 | J188: 0.81 | L188: 0.81 | N188: 0.3 | P188: 0.3 | R188: 0 | S188: 0
A189: 18.7 | B189: 0.81 | C189: 0.75 | D189: 0.95 | F189: 0.72 | G189: 0.75 | H189: 0.95 | J189: 0.81 | L189: 0.81 | N189: 0.3 | P189: 0.3 | R189: 0 | S189: 0
A190: 18.8 | B190: 0.81 | C190: 0.75 | D190: 0.95 | F190: 0.72 | G190: 0.75 | H190: 0.95 | J190: 0.81 | L190: 0.81 | N190: 0.3 | P190: 0.3 | R190: 0 | S190: 0
A191: 18.9 | B191: 0.81 | C191: 0.75 | D191: 0.95 | F191: 0.72 | G191: 0.75 | H191: 0.95 | J191: 0.81 | L191: 0.81 | N191: 0.3 | P191: 0.3 | R191: 0 | S191: 0
A192: 19 | B192: 0.81 | C192: 0.75 | D192: 0.95 | F192: 0.72 | G192: 0.75 | H192: 0.95 | J192: 0.81 | L192: 0.81 | N192: 0.3 | P192: 0.3 | R192: 0 | S192: 0
A193: 19.1 | B193: 0.81 | C193: 0.75 | D193: 0.95 | F193: 0.72 | G193: 0.75 | H193: 0.95 | J193: 0.81 | L193: 0.81 | N193: 0.3 | P193: 0.3 | R193: 0 | S193: 0
A194: 19.2 | B194: 0.81 | C194: 0.75 | D194: 0.95 | F194: 0.72 | G194: 0.75 | H194: 0.95 | J194: 0.81 | L194: 0.81 | N194: 0.3 | P194: 0.3 | R194: 0 | S194: 0
A195: 19.3 | B195: 0.81 | C195: 0.75 | D195: 0.95 | F195: 0.72 | G195: 0.75 | H195: 0.95 | J195: 0.81 | L195: 0.81 | N195: 0.3 | P195: 0.3 | R195: 0 | S195: 0
A196: 19.4 | B196: 0.81 | C196: 0.75 | D196: 0.95 | F196: 0.72 | G196: 0.75 | H196: 0.95 | J196: 0.81 | L196: 0.81 | N196: 0.3 | P196: 0.3 | R196: 0 | S196: 0
A197: 19.5 | B197: 0.81 | C197: 0.75 | D197: 0.95 | F197: 0.72 | G197: 0.75 | H197: 0.95 | J197: 0.81 | L197: 0.81 | N197: 0.3 | P197: 0.3 | R197: 0 | S197: 0
A198: 19.6 | B198: 0.81 | C198: 0.75 | D198: 0.95 | F198: 0.72 | G198: 0.75 | H198: 0.95 | J198: 0.81 | L198: 0.81 | N198: 0.3 | P198: 0.3 | R198: 0 | S198: 0
A199: 19.7 | B199: 0.81 | C199: 0.75 | D199: 0.95 | F199: 0.72 | G199: 0.75 | H199: 0.95 | J199: 0.81 | L199: 0.81 | N199: 0.3 | P199: 0.3 | R199: 0 | S199: 0
A200: 19.8 | B200: 0.81 | C200: 0.75 | D200: 0.95 | F200: 0.72 | G200: 0.75 | H200: 0.95 | J200: 0.81 | L200: 0.81 | N200: 0.3 | P200: 0.3 | R200: 0 | S200: 0
... 3492 more rows

Sheet Curves Gamma train (hidden)
N1: Speed (km/h) | O1: A_safe (EBD) (m/s2) | P1: A_expected (SBD) (m/s2) | Q1: A_normal_ service (GUI) (m/s2) | R1: EBD (m) | S1: SBD (m) | T1: EBI (m) | U1: SBI1 (m) | V1: SBI2 (m) | W1: SBI (m) | X1: Warning (m) | Y1: Permitted (m) | Z1: Indication (m) | AA1: EBI for release speed (m) | AB1: Speed (km/h) | AC1: Position (m) | AD1: Release speed (km/h) | AE1: GUI-EOA (m) | AF1: GUI-SvL (m) | AG1: =$N1 -> Speed (km/h) | AH1: GUI LOA/MRSP target (m) | AI1: =$N1 -> Speed (km/h) | AJ1: =$N1 -> Speed (km/h) | AK1: t_be reduced (s) | AL1: t_bs reduced (s) | AQ1: A_EB (m/s2) | AR1: A_EB_after | AS1: A_SB (m/s2) | AT1: A_SB_after | AU1: A_safemax (m/s2) | AV1: A_safemax_after | AW1: A_expectedmax (m/s2) | AX1: A_expectedmax_after | AY1: Iteration | AZ1: GUI foot changed
N2: 0
N3: 0.1
N4: 0.2
N5: 0.3
N6: 0.4
N7: 0.5
N8: 0.6
N9: 0.7
N10: 0.8
N11: 0.9
N12: 1
N13: 1.1
N14: 1.2
N15: 1.3
N16: 1.4
N17: 1.5
N18: 1.6
N19: 1.7
N20: 1.8
N21: 1.9
N22: 2
N23: 2.1
N24: 2.2
N25: 2.3
N26: 2.4
N27: 2.5
N28: 2.6
N29: 2.7
N30: 2.8
N31: 2.9
N32: 3
N33: 3.1
N34: 3.2
N35: 3.3
A36: Initial speed (km/h) | B36: Distance from target (m) | I36: Release speed (km/h) | N36: 3.4
B37: Perturbation | C37: Indication | D37: Permitted | E37: Warning | F37: SBI | G37: EBI | H37: StartRSM | N37: 3.5
A38: 160 | B38: 3656.454057 | C38: 3656.454057 | D38: 3256.454057 | E38: 2660.412778 | F38: 2571.523889 | G38: 2358.190556 | H38: N/A | I38: N/A | N38: 3.6
N39: 3.7
G40: 1754.061344 | H40: 91.53664303 | I40: 2 | N40: 3.8
N41: 3.9
N42: 4
N43: 4.1
N44: 4.2
N45: 4.3
N46: 4.4
N47: 4.5
N48: 4.6
N49: 4.7
N50: 4.8
N51: 4.9
N52: 5
N53: 5.1
N54: 5.2
N55: 5.3
N56: 5.4
N57: 5.5
N58: 5.6
N59: 5.7
N60: 5.8
N61: 5.9
N62: 6
N63: 6.1
N64: 6.2
N65: 6.3
N66: 6.4
N67: 6.5
N68: 6.6
N69: 6.7
N70: 6.8
N71: 6.9
N72: 7
N73: 7.1
N74: 7.2
N75: 7.3
N76: 7.4
N77: 7.5
N78: 7.6
N79: 7.7
N80: 7.8
N81: 7.9
N82: 8
N83: 8.1
N84: 8.2
N85: 8.3
N86: 8.4
N87: 8.5
N88: 8.6
N89: 8.7
N90: 8.8
N91: 8.9
N92: 9
N93: 9.1
N94: 9.2
N95: 9.3
N96: 9.4
N97: 9.5
N98: 9.6
N99: 9.7
N100: 9.8
N101: 9.9
N102: 10
N103: 10.1
N104: 10.2
N105: 10.3
N106: 10.4
N107: 10.5
N108: 10.6
N109: 10.7
N110: 10.8
N111: 10.9
N112: 11
N113: 11.1
N114: 11.2
N115: 11.3
N116: 11.4
N117: 11.5
N118: 11.6
N119: 11.7
N120: 11.8
N121: 11.9
N122: 12
N123: 12.1
N124: 12.2
N125: 12.3
N126: 12.4
N127: 12.5
N128: 12.6
N129: 12.7
N130: 12.8
N131: 12.9
N132: 13
N133: 13.1
N134: 13.2
N135: 13.3
N136: 13.4
N137: 13.5
N138: 13.6
N139: 13.7
N140: 13.8
N141: 13.9
N142: 14
N143: 14.1
N144: 14.2
N145: 14.3
N146: 14.4
N147: 14.5
N148: 14.6
N149: 14.7
N150: 14.8
N151: 14.9
N152: 15
N153: 15.1
N154: 15.2
N155: 15.3
N156: 15.4
N157: 15.5
N158: 15.6
N159: 15.7
N160: 15.8
N161: 15.9
N162: 16
N163: 16.1
N164: 16.2
N165: 16.3
N166: 16.4
N167: 16.5
N168: 16.6
N169: 16.7
N170: 16.8
N171: 16.9
N172: 17
N173: 17.1
N174: 17.2
N175: 17.3
N176: 17.4
N177: 17.5
N178: 17.6
N179: 17.7
N180: 17.8
N181: 17.9
N182: 18
N183: 18.1
N184: 18.2
N185: 18.3
N186: 18.4
N187: 18.5
N188: 18.6
N189: 18.7
N190: 18.8
N191: 18.9
N192: 19
N193: 19.1
N194: 19.2
N195: 19.3
N196: 19.4
N197: 19.5
N198: 19.6
N199: 19.7
N200: 19.8
... 1564 more rows

Sheet Calc Gamma (hidden)
A1: EBD1 Speed "pivot" values | B1: EBD2 Speed "pivot" values | C1: EBD Distance "pivot" values (from origin) | E1: SBD1 Speed "pivot" values | F1: SBD2 Speed "pivot" values | G1: SBD Distance "pivot" values (from origin) | I1: GUI1 Speed "pivot" values | J1: GUI2 Speed "pivot" values
A2: 40 | B2: 80 | C2: 2000 | E2: 40 | F2: 40 | G2: 2000 | I2: 150 | J2: 150
A3: 80 | B3: 100 | C3: 4400 | E3: 80 | F3: 80 | G3: 4400 | I3: 280 | J3: 280
A4: 100 | B4: 155 | E4: 100 | F4: 100
A5: 155 | B5: 180 | E5: 155 | F5: 155
A6: 180 | B6: 250 | E6: 180 | F6: 180
A7: 250 | E7: 250 | F7: 250

Sheet Curves Lambda train
N1: Speed (km/h) | O1: A_safe (EBD) (m/s2) | P1: A_expected (SBD) (m/s2) | Q1: A_normal_ service (GUI) (m/s2) | R1: EBD (m) | S1: SBD (m) | T1: EBI(m) | U1: SBI1 (m) | V1: SBI2 (m) | W1: SBI (m) | X1: Warning (m) | Y1: Permitted (m) | Z1: Indication (m) | AA1: EBI for release speed (m) | AB1: Speed (km/h) | AC1: Position (m) | AD1: Release speed (km/h) | AE1: GUI-EOA (m) | AF1: GUI-SvL (m) | AG1: =$N1 -> Speed (km/h) | AH1: GUI LOA/MRSP target (m) (m) | AI1: =$N1 -> Speed (km/h) | AJ1: =$N1 -> Speed (km/h) | AK1: t_be reduced (s) | AL1: t_bs reduced (s) | AQ1: A_EB (m/s2) | AR1: A_EB_after | AS1: A_SB (m/s2) | AT1: A_SB_after | AU1: A_safemax (m/s2) | AV1: A_safemax_after | AW1: A_expectedmax (m/s2) | AX1: A_expectedmax_after | AY1: Iteration
N2: 0
N3: 0.1
N4: 0.2
N5: 0.3
N6: 0.4
N7: 0.5
N8: 0.6
N9: 0.7
N10: 0.8
N11: 0.9
N12: 1
N13: 1.1
N14: 1.2
N15: 1.3
N16: 1.4
N17: 1.5
N18: 1.6
N19: 1.7
N20: 1.8
N21: 1.9
N22: 2
N23: 2.1
N24: 2.2
N25: 2.3
N26: 2.4
N27: 2.5
N28: 2.6
N29: 2.7
N30: 2.8
N31: 2.9
N32: 3
N33: 3.1
N34: 3.2
N35: 3.3
A36: Initial speed (km/h) | B36: Distance from target (m) | I36: Release speed (km/h) | N36: 3.4
B37: Perturbation | C37: Indication | D37: Permitted | E37: Warning | F37: SBI | G37: EBI | H37: StartRSM | N37: 3.5
A38: 160 | B38: 4135.358154 | C38: 4135.358154 | D38: 3356.833709 | E38: 3267.94482 | F38: 3179.055931 | G38: 2428.122598 | H38: N/A | I38: N/A | N38: 3.6
N39: 3.7
N40: 3.8
N41: 3.9
N42: 4
N43: 4.1
N44: 4.2
N45: 4.3
N46: 4.4
N47: 4.5
N48: 4.6
N49: 4.7
N50: 4.8
N51: 4.9
N52: 5
N53: 5.1
N54: 5.2
N55: 5.3
N56: 5.4
N57: 5.5
N58: 5.6
N59: 5.7
N60: 5.8
N61: 5.9
N62: 6
N63: 6.1
N64: 6.2
N65: 6.3
N66: 6.4
N67: 6.5
N68: 6.6
N69: 6.7
N70: 6.8
N71: 6.9
N72: 7
N73: 7.1
N74: 7.2
N75: 7.3
N76: 7.4
N77: 7.5
N78: 7.6
N79: 7.7
N80: 7.8
N81: 7.9
N82: 8
N83: 8.1
N84: 8.2
N85: 8.3
N86: 8.4
N87: 8.5
N88: 8.6
N89: 8.7
N90: 8.8
N91: 8.9
N92: 9
N93: 9.1
N94: 9.2
N95: 9.3
N96: 9.4
N97: 9.5
N98: 9.6
N99: 9.7
N100: 9.8
N101: 9.9
N102: 10
N103: 10.1
N104: 10.2
N105: 10.3
N106: 10.4
N107: 10.5
N108: 10.6
N109: 10.7
N110: 10.8
N111: 10.9
N112: 11
N113: 11.1
N114: 11.2
N115: 11.3
N116: 11.4
N117: 11.5
N118: 11.6
N119: 11.7
N120: 11.8
N121: 11.9
N122: 12
N123: 12.1
N124: 12.2
N125: 12.3
N126: 12.4
N127: 12.5
N128: 12.6
N129: 12.7
N130: 12.8
N131: 12.9
N132: 13
N133: 13.1
N134: 13.2
N135: 13.3
N136: 13.4
N137: 13.5
N138: 13.6
N139: 13.7
N140: 13.8
N141: 13.9
N142: 14
N143: 14.1
N144: 14.2
N145: 14.3
N146: 14.4
N147: 14.5
N148: 14.6
N149: 14.7
N150: 14.8
N151: 14.9
N152: 15
N153: 15.1
N154: 15.2
N155: 15.3
N156: 15.4
N157: 15.5
N158: 15.6
N159: 15.7
N160: 15.8
N161: 15.9
N162: 16
N163: 16.1
N164: 16.2
N165: 16.3
N166: 16.4
N167: 16.5
N168: 16.6
N169: 16.7
N170: 16.8
N171: 16.9
N172: 17
N173: 17.1
N174: 17.2
N175: 17.3
N176: 17.4
N177: 17.5
N178: 17.6
N179: 17.7
N180: 17.8
N181: 17.9
N182: 18
N183: 18.1
N184: 18.2
N185: 18.3
N186: 18.4
N187: 18.5
N188: 18.6
N189: 18.7
N190: 18.8
N191: 18.9
N192: 19
N193: 19.1
N194: 19.2
N195: 19.3
N196: 19.4
N197: 19.5
N198: 19.6
N199: 19.7
N200: 19.8
... 1564 more rows

Sheet Calc Lambda (hidden)
A1: EBD Speed "pivot" values | B1: EBD Distance"pivot" values (from origin) | D1: SBD Speed "pivot" values | E1: SBD Distance"pivot" values (from origin) | G1: GUI Speed "pivot" values
A2: 115.6 | B2: 2000 | D2: 115.6 | E2: 2000 | G2: 40 | N2: =-Track!$E$1 -> 0 | O2: =$A$2 -> 115.6 | Q2: =Track!$B$3-$B$2 -> 4000 | R2: 0
A3: 120 | B3: 4400 | D3: 120 | E3: 4400 | G3: 160 | N3: =$B$2+500 -> 2500 | O3: =O2 -> 115.6 | Q3: =Q2 -> 4000 | R3: =$A$5 -> 180
A4: 150 | D4: 150
A5: 180 | D5: 180 | N5: =-Track!$E$1 -> 0 | O5: =$A$3 -> 120 | Q5: =Track!$B$3-$B$3 -> 1600 | R5: 0
N6: =$B$2+500 -> 2500 | O6: =O5 -> 120 | Q6: =Q5 -> 1600 | R6: =$A$5 -> 180
N8: =-Track!$E$1 -> 0 | O8: =$A$4 -> 150 | Q8: =Track!$B$3-$B$4 -> 6000 | R8: 0
N9: =$B$2+500 -> 2500 | O9: =O8 -> 150 | Q9: =Q8 -> 6000 | R9: =$A$5 -> 180
N11: =-Track!$E$1 -> 0 | O11: =$A$5 -> 180 | Q11: =Track!$B$3-$B$5 -> 6000 | R11: 0
N12: =$B$2+500 -> 2500 | O12: =O11 -> 180 | Q12: =Q11 -> 6000 | R12: =$A$5 -> 180
N14: =-Track!$E$1 -> 0 | O14: =$A$6 -> 0 | Q14: =Track!$B$3-$B$6 -> 6000 | R14: 0
N15: =$B$2+500 -> 2500 | O15: =O14 -> 0 | Q15: =Q14 -> 6000 | R15: =$A$5 -> 180
N17: =-Track!$E$1 -> 0 | O17: =$A$7 -> 0 | Q17: =Track!$B$3-$B$7 -> 6000 | R17: 0
N18: =$B$2+500 -> 2500 | O18: =O17 -> 0 | Q18: =Q17 -> 6000 | R18: =$A$5 -> 180
N20: =-Track!$E$1 -> 0 | O20: =$A$8 -> 0 | Q20: =Track!$B$3-$B$8 -> 6000 | R20: 0
N21: =$B$2+500 -> 2500 | O21: =O20 -> 0 | Q21: =Q20 -> 6000 | R21: =$A$5 -> 180
N23: =-Track!$E$1 -> 0 | O23: =$A$9 -> 0 | Q23: =Track!$B$3-$B$9 -> 6000 | R23: 0
N24: =$B$2+500 -> 2500 | O24: =O23 -> 0 | Q24: =Q23 -> 6000 | R24: =$A$5 -> 180
N26: =-Track!$E$1 -> 0 | O26: =$A$10 -> 0 | Q26: =Track!$B$3-$B$10 -> 6000 | R26: 0
N27: =$B$2+500 -> 2500 | O27: =O26 -> 0 | Q27: =Q26 -> 6000 | R27: =$A$5 -> 180
N29: =-Track!$E$1 -> 0 | O29: =$A$11 -> 0 | Q29: =Track!$B$3-$B$11 -> 6000 | R29: 0
N30: =$B$2+500 -> 2500 | O30: =O29 -> 0 | Q30: =Q29 -> 6000 | R30: =$A$5 -> 180
Q32: =Track!$B$3-$B$12 -> 6000 | R32: 0
Q33: =Q32 -> 6000 | R33: =$A$5 -> 180
Q35: =Track!$B$3-$B$13 -> 6000 | R35: 0
Q36: =Q35 -> 6000 | R36: =$A$5 -> 180
Q38: =Track!$B$3-$B$14 -> 6000 | R38: 0
Q39: =Q38 -> 6000 | R39: =$A$5 -> 180
